{"text_format":"1","workbook":"xlsx","n_sheets":47,"sheets":["Indice","BG","ER","EVPN","EFE","Nota1","Nota 2","Nota 3","Nota 4","Nota 5","Nota 6","Nota 7","Nota 8","Nota 9","Nota 10","Nota 11","Nota 12","Nota 13","Nota 14","Nota 15","Nota 16","Nota 17","Nota 18","Nota 19","Nota 20"," Nota 21","Nota 22","Nota 23","Nota 24","Nota 25","Nota 26","Nota 27","Nota 28","Nota 29","Nota 30","Nota 31","Nota 32","Nota 33","Nota 34","Nota 35","Nota 36","Nota 37","Nota 38","Nota 39","Nota 40","Base de Monedas","Hoja1"],"not_rendered":{"charts":0,"images":1,"macros":1,"external_links":0,"defined_names":8,"comments":0,"pivot_tables":0},"unopened":[],"bounds":{"document_bytes":16777216,"sheet_cells":100000,"rows_first":2000,"rows_last":500,"rows_between":2000,"halvings":0,"cell_chars":16384,"cell_head_chars":4096},"cells_cut":0,"cells_raw":0,"read":"whole","date_system":"1900"}

{"sheet":"Indice","index":0,"n_rows":64,"n_cols":20,"rows_kept":64,"cut":false,"hidden":false,"merged":[[0,2,0,3]]}
[null,"Sociedad:","GAS CORONA S.A.E.C.A."]
[null,null,null,null,null,null,null,null,null,null,null,null,null,null,null,null,null,null,1,"Enero"]
[null,null,null,null,null,null,null,null,null,null,null,null,null,null,null,null,null,null,2,"Febrero"]
[null,null,null,null,null,null,null,null,null,null,null,null,null,null,null,null,null,null,3,"Marzo"]
[null,null,null,null,null,null,null,null,null,null,null,null,null,null,null,null,null,null,4,"Abril"]
["Fecha Presentación:","2021-09-30",null,null,null,null,null,null,null,null,null,null,null,null,null,null,null,null,5,"Mayo"]
[null,null,null,null,null,null,null,null,null,null,null,null,null,null,null,null,null,null,6,"Junio"]
[null,null,null,null,null,null,null,null,null,null,null,null,null,null,null,null,null,null,7,"Julio"]
[null,null,"INDICE","REF.",null,null,null,null,null,null,null,null,null,null,null,null,null,null,8,"Agosto"]
[null,"Informacion General",null,null,null,null,null,null,null,null,null,null,null,null,null,null,null,null,9,"Septiembre"]
[null,null,"Descripción de la naturaleza y del negocio de la Sociedad","Nota 1",null,null,null,null,null,null,null,null,null,null,null,null,null,null,10,"Octubre"]
[null,null,"Resumen de las principales políticas contables","Nota 2",null,null,null,null,null,null,null,null,null,null,null,null,null,null,11,"Noviembre"]
[null,"Balance General",null,"BG",null,null,null,null,null,null,null,null,null,null,null,null,null,null,12,"Diciembre"]
[null,null,"Efectivo y equivalente de efectivo","Nota 3"]
[null,null,"Inversiones temporales","Nota 4"]
[null,null,"Cuentas por cobrar comerciales","Nota 5"]
[null,null,"Otros créditos","Nota 6"]
[null,null,"Cuentas por cobrar comerciales","Nota 5"]
[null,null,"Inventarios","Nota 7"]
[null,null,"Inversión en asociadas","Nota 8"]
[null,null,"Propiedades, planta y equipo","Nota 9"]
[null,null,"Activos disponibles para la venta","Nota 10"]
[null,null,"Activos intangibles","Nota 11"]
[null,null,"Goodwill","Nota 12"]
[null,null,"Cuentas por pagar comerciales","Nota 13"]
[null,null,"Préstamos a corto plazo","Nota 14"]
[null,null,"Porción corriente de la deuda a largo plazo","Nota 15"]
[null,null,"Remuneraciones y cargas sociales a pagar","Nota 16"]
[null,null,"Impuestos a pagar","Nota 17"]
[null,null,"Provisiones","Nota 18"]
[null,null,"Otros pasivos corrientes","Nota 19"]
[null,null,"Prestamos a largo plazo","Nota 14"]
[null,null,"Otros pasivos no corrientes","Nota 19"]
[null,null,"Capital integrado","Nota 20"]
[null,null,"Reserva de revalúo","Nota 21"]
[null,null,"Reserva legal","Nota 21"]
[null,null,"Reservas estatutarias","Nota 21"]
[null,null,"Reservas facultativas","Nota 21"]
[null,null,"Diferencia transitoria por conversión","Nota 22"]
[null,null,"Resultados acumulados","Nota 23"]
[null,null,"Interés minoritario","Nota 24"]
[null,"Estado de Resultados ",null,"ER"]
[null,null,"Ventas","Nota 25"]
[null,null,"Costo de ventas","Nota 26"]
[null,null,"Gastos de ventas","Nota 27"]
[null,null,"Gastos administrativos","Nota 27"]
[null,null,"Otros ingresos y gastos operativos","Nota 28"]
[null,null,"Ingresos financieros - neto","Nota 29"]
[null,null,"Gastos financieros - neto","Nota 29"]
[null,null,"Resultado de inversiones en asociadas","Nota 30"]
[null,null,"Resultado participación minoritaria","Nota 31"]
[null,null,"Impuesto a la renta","Nota 32"]
[null,null,"Resultado extraordinario neto de impuesto a la renta","Nota 33"]
[null,null,"Resultado sobre actividades discontinuadas neto de impuesto a la renta","Nota 34"]
[null,null,"Utilidad/(Pérdida) neta del año","Nota 35"]
[null,null,"Utilidad neta por acción ordinaria","Nota 35"]
[null,"Estado de Evolución del Patrimonio Neto",null,"EVPN"]
[null,"Estado de Flujos de Efectivo",null,"EFE"]
[null,"Otras Notas de los Estados Financieros"]
[null,null,"Activos gravados","Nota 36"]
[null,null,"Contingencias y compromisos","Nota 37"]
[null,null,"Impuesto diferido","Nota 38"]
[null,null,"Hechos posteriores","Nota 39"]
[null,null,"Saldos y transacciones con partes relacionadas","Nota 40"]

{"sheet":"BG","index":1,"n_rows":73,"n_cols":7,"rows_kept":73,"cut":false,"hidden":false,"merged":[[15,2,15,3],[16,2,16,3],[17,2,17,3],[26,2,26,3],[55,2,55,3],[50,2,50,3],[51,2,51,3],[52,2,52,3],[31,2,31,3],[33,2,33,3],[34,2,34,3],[35,2,35,3],[36,2,36,3],[48,2,48,3],[6,0,6,6],[8,0,8,6],[64,5,64,6],[53,2,53,3],[54,2,54,3],[27,2,27,3],[24,2,24,3],[25,2,25,3],[20,2,20,3],[22,2,22,3],[23,2,23,3],[32,2,32,3],[7,0,7,6],[41,2,41,3],[13,2,13,3],[14,2,14,3],[65,4,65,6],[71,2,71,3],[72,5,72,6],[71,4,71,6],[11,1,11,3],[29,1,29,3],[46,1,46,3],[45,1,45,3],[56,1,56,3],[28,1,28,3],[57,1,57,3],[37,2,37,3],[40,2,40,3],[42,2,42,3],[47,2,47,3],[49,2,49,3]]}
[null,null,null,{"$f":"Indice!C1","v":"GAS CORONA S.A.E.C.A."},"Indice"]
[]
[]
[]
[]
[]
["BALANCE GENERAL"]
[{"$f":"IFERROR(IF(Indice!B6=\"\",\"Al dia... de mes… de año 2XX2…\",\"Al \"&DAY(Indice!B6)&\" de \"&VLOOKUP(MONTH(Indice!B6),Indice!S:T,2,0)&\" de \"&YEAR(Indice!B6)),\"Al dia... de mes… de año 2XX2…\")","v":"Al 30 de Septiembre de 2021"}]
["    (Expresado en  guaraníes)"]
[]
[null,null,null,null,"Nota",{"$f":"IFERROR(IF(Indice!B6=\"\",\"2XX2\",YEAR(Indice!B6)),\"2XX2\")","v":2021},{"$f":"IFERROR(YEAR(Indice!B6-365),\"2XX1\")","v":2020}]
[null,"ACTIVOS"]
[null,"Activos Corrientes"]
[null,null,"Efectivo y equivalente de efectivo",null,3,{"$f":"'Nota 3'!C28","v":6003101622},{"$f":"'Nota 3'!D28","v":28663887840}]
[null,null,"Inversiones temporales",null,4,{"$f":"'Nota 4'!B18","v":0},{"$f":"'Nota 4'!C18","v":0}]
[null,null,"Cuentas por cobrar comerciales",null,5,{"$f":"'Nota 5'!C31","v":16471190491},{"$f":"'Nota 5'!D31","v":18157340750}]
[null,null,"Otros créditos",null,6,{"$f":"'Nota 6'!B21","v":6486987190},{"$f":"'Nota 6'!C21","v":3862788295}]
[null,null,"Inventarios",null,7,{"$f":"'Nota 7'!B19","v":30522654337},{"$f":"'Nota 7'!C19","v":23413365409}]
[null,null,"Total activos corrientes",null,null,{"$f":"SUM(F14:F18)","v":59483933640},{"$f":"SUM(G14:G18)","v":74097382294}]
[null,"Activos no Corrientes"]
[null,null,"Otros créditos ",null,6,{"$f":"'Nota 6'!F18","v":0},{"$f":"'Nota 6'!G18","v":0}]
[null,null,"Cuentas por cobrar comerciales",null,5,{"$f":"'Nota 5'!C58","v":0},{"$f":"'Nota 5'!D58","v":0}]
[null,null,"Inversión en asociadas",null,8,{"$f":"'Nota 8'!B8","v":0},{"$f":"'Nota 8'!C8","v":0}]
[null,null,"Propiedades, planta y equipo/Bienes de uso, neto",null,9,{"$f":"'Nota 9'!L35","v":41292885090},{"$f":"'Nota 9'!M35","v":36638573867}]
[null,null,"Activos disponibles para la venta",null,10,{"$f":"'Nota 10'!B23","v":10112318839},{"$f":"'Nota 10'!C23","v":10579687168}]
[null,null,"Activos intangibles",null,11,{"$f":"'Nota 11'!B13","v":836810362},{"$f":"'Nota 11'!C13","v":696378574}]
[null,null,"Goodwill",null,12,{"$f":"'Nota 12'!B11","v":0},{"$f":"'Nota 12'!C11","v":0}]
[null,null,"Total activos no corrientes",null,null,{"$f":"SUM(F21:F27)","v":52242014291},{"$f":"SUM(G21:G27)","v":47914639609}]
[null,"Total Activos",null,null,null,{"$f":"+F19+F28","v":111725947931},{"$f":"+G19+G28","v":122012021903}]
[null,"PASIVOS Y PATRIMONIO NETO"]
[null,"Pasivos corrientes",null,null,null,-1]
[null,null,"Cuentas por pagar comerciales",null,13,{"$f":"'Nota 13'!D17","v":21636594750},{"$f":"'Nota 13'!E17","v":20182201308}]
[null,null,"Préstamos a corto plazo ",null,14,{"$f":"'Nota 14'!E29","v":2033383561},{"$f":"'Nota 14'!K29","v":2330534259}]
[null,null,"Porción corriente de la deuda a largo plazo",null,15,{"$f":"'Nota 15'!B15","v":0},{"$f":"'Nota 15'!C15","v":0}]
[null,null,"Remuneraciones y cargas sociales a pagar",null,16,{"$f":"'Nota 16'!B19","v":1468286904},{"$f":"'Nota 16'!C19","v":1421047125}]
[null,null,"Impuestos a pagar",null,17,{"$f":"'Nota 17'!B17","v":53216755},{"$f":"'Nota 17'!C17","v":94765015}]
[null,null,"Provisiones",null,18,{"$f":"'Nota 18'!B18","v":8282888389},{"$f":"'Nota 18'!C18","v":6062068432}]
[null,null,"Otros pasivos corrientes",null,19,{"$f":"'Nota 19'!B17","v":1713791642},{"$f":"'Nota 19'!C17","v":1716629332}]
[null,null,"Total Pasivos Corrientes",null,null,{"$f":"+F32+F33+F34+F35+F36+F37+F38","v":35188162001},{"$f":"SUM(G32:G38)","v":31807245471}]
[null,"Pasivos no corrientes"]
[null,null,"Préstamos a largo plazo ",null,14,{"$f":"'Nota 14'!E50","v":12275671233},{"$f":"'Nota 14'!K50","v":14000000000}]
[null,null,"Cuentas por pagar comerciales",null,13,{"$f":"'Nota 13'!D26","v":516042093},{"$f":"'Nota 13'!E25","v":76383554}]
[null,null,"Otros pasivos  no corrientes",null,19,{"$f":"'Nota 19'!F17","v":0},{"$f":"'Nota 19'!G17","v":0}]
[null,null,"Total pasivos no corrientes",null,null,{"$f":"SUM(F41:F43)","v":12791713326},{"$f":"SUM(G41:G43)","v":14076383554}]
[]
[null,"Total Pasivos",null,null,null,{"$f":"+F39+F44","v":47979875327},{"$f":"+G39+G44","v":45883629025}]
[null,"Patrimonio Neto"]
[null,null,"Capital integrado",null,20,{"$f":"'Nota 20'!B14","v":50000000000},{"$f":"'Nota 20'!C14","v":49200000000}]
[null,null,"Reserva de revalúo",null,21,{"$f":"' Nota 21'!B11","v":0},{"$f":"' Nota 21'!C11","v":0}]
[null,null,"Reserva legal",null,21,{"$f":"' Nota 21'!B15","v":8151731798},{"$f":"' Nota 21'!C15","v":6931012994}]
[null,null,"Reservas estatutarias",null,21,{"$f":"' Nota 21'!B19","v":0},{"$f":"' Nota 21'!C19","v":0}]
[null,null,"Reservas facultatitvas",null,21,{"$f":"' Nota 21'!B23","v":0},{"$f":"' Nota 21'!C23","v":0}]
[null,null,"Diferencia transitoria por conversión",null,22,{"$f":"'Nota 22'!B8","v":0},{"$f":"'Nota 22'!C8","v":0}]
[null,null,"Resultados acumulados",null,23,{"$f":"'Nota 23'!B15","v":5594340806},{"$f":"'Nota 23'!C15","v":19997379884}]
[null,null,"Subtotal",null,null,{"$f":"SUM(F48:F54)","v":63746072604},{"$f":"SUM(G48:G54)","v":76128392878}]
[null,null,"Interés minoritario",null,24,{"$f":"'Nota 24'!B8","v":0},{"$f":"'Nota 24'!C8","v":0}]
[null,"Total Patrimonio Neto",null,null,null,{"$f":"F55","v":63746072604},{"$f":"G55","v":76128392878}]
[null,"Total Pasivos y Patrimonio Neto",null,null,null,{"$f":"+F46+F57","v":111725947931},{"$f":"+G46+G57","v":122012021903}]
[]
[null,"Las notas que se acompañan forman parte integrante de estos estados."]
[]
[]
[]
[]
[]
[null,null,null,"Sra Luisa Isabel Schaerer de Pallares","Sra. Maria Celeste Pallares Viveros"]
[null,null,null,"Presidente ",null,"Vicepresidente"]
[]
[]
[]
[]
[null,null,"Dr. Raul Fernando Vargas",null,"C.P. Gloria Elizabeth Flecha Benitez"]
[null,null,null,"Sindico Titular",null,"Contador"]

{"sheet":"ER","index":2,"n_rows":51,"n_cols":4,"rows_kept":51,"cut":false,"hidden":false,"merged":[[6,0,6,3],[7,0,7,3],[8,0,8,3],[9,0,9,3]]}
[{"$f":"Indice!C1","v":"GAS CORONA S.A.E.C.A."},"Indice",null,{"$f":"ER!A4","v":" "}]
[]
[]
[" "]
[]
[]
["ESTADO DE RESULTADOS"]
[{"$f":"IFERROR(IF(Indice!B6=\"\",\"Al dia... de mes… de año 2XX2…\",\"Al \"&DAY(Indice!B6)&\" de \"&VLOOKUP(MONTH(Indice!B6),Indice!S:T,2,0)&\" de \"&YEAR(Indice!B6)),\"Al dia... de mes… de año 2XX2…\")","v":"Al 30 de Septiembre de 2021"}]
["Comparativo con igual período del año anterior"]
[" (Expresado en guaraníes)"]
[]
[null,"Nota",{"$f":"IFERROR(IF(Indice!B6=\"\",\"2XX2\",YEAR(Indice!B6)),\"2XX2\")","v":2021},{"$f":"IFERROR(YEAR(Indice!B6-365),\"2XX1\")","v":2020}]
["Ventas",25,{"$f":"'Nota 25'!B27","v":205672386225},{"$f":"'Nota 25'!C27","v":189001669458}]
["Costo de ventas",26,{"$f":"'Nota 26'!B22","v":-166539151254},{"$f":"'Nota 26'!C22","v":-135437424710}]
["Utilidad bruta",null,{"$f":"C13+C14","v":39133234971},{"$f":"D13+D14","v":53564244748}]
["Gastos de ventas",27,{"$f":"-'Nota 27'!B35","v":-21243250560},{"$f":"-'Nota 27'!E35","v":-22722796090}]
["Gastos administrativos ",27,{"$f":"-'Nota 27'!C35","v":-12204262432},{"$f":"-'Nota 27'!F35","v":-11795666016}]
["Otros ingresos  y gastos operativos",28,{"$f":"'Nota 28'!B15","v":1272243249},{"$f":"'Nota 28'!C15","v":1718810880}]
["Resultado operativo",null,{"$f":"C15+C16+C17+C18","v":6957965228},{"$f":"D15+D16+D17+D18","v":20764593522}]
["Ingresos financieros - neto",29,{"$f":"'Nota 29'!B14","v":587680775},{"$f":"'Nota 29'!C14","v":771590786}]
["Gastos financieros -  neto",29,{"$f":"-'Nota 29'!F14","v":-1951305197},{"$f":"-'Nota 29'!G14","v":-1538804424}]
["Subtotal",null,{"$f":"SUM(C20:C21)","v":-1363624422},{"$f":"SUM(D20:D21)","v":-767213638}]
["Resultado de inversiones en asociadas",30,{"$f":"'Nota 30'!B13","v":0},{"$f":"'Nota 30'!C13","v":0}]
["Resultados ordinarios antes de impuesto a la renta y participación minoritaria",null,{"$f":"C19+C22","v":5594340806},{"$f":"D19+D22","v":19997379884}]
["Resultado participación minoritaria",31,{"$f":"'Nota 31'!B12","v":0},{"$f":"'Nota 31'!C12","v":0}]
["Resultado ordinario antes del impuesto a la renta"]
["Impuesto a la renta",32,{"$f":"'Nota 32'!B14","v":0},{"$f":"'Nota 32'!C14","v":0}]
["Resultado neto de actividades ordinarias",null,{"$f":"C26+C27","v":0},{"$f":"D26+D27","v":0}]
["Resultado extraordinario neto de impuesto a la renta",33,{"$f":"'Nota 32'!B14","v":0},{"$f":"'Nota 32'!C14","v":0}]
["Resultado sobre actividades discontinuadas neto de impuesto a la renta",34,{"$f":"'Nota 34'!B12","v":0},{"$f":"'Nota 34'!C12","v":0}]
["Utilidad/(Pérdida) neta del año ",null,{"$f":"C28+C29+C30","v":0},{"$f":"D28+D29+D30","v":0}]
["Utilidad neta por acción ordinaria",35,{"$f":"'Nota 35'!B10","v":1118868.1612},{"$f":"'Nota 35'!C10","v":4064508.106504065}]
[]
[]
["Las notas que se acompañan forman parte integrante de estos estados."]
[]
[]
[]
[]
[]
[{"$f":"BG!D66","v":"Sra Luisa Isabel Schaerer de Pallares"},null,{"$f":"BG!E66","v":"Sra. Maria Celeste Pallares Viveros"}]
[{"$f":"BG!D67","v":"Presidente "},null,{"$f":"BG!F67","v":"Vicepresidente"}]
[]
[]
[]
[]
[]
[]
[]
[{"$f":"BG!C72","v":"Dr. Raul Fernando Vargas"},null,{"$f":"BG!E72","v":"C.P. Gloria Elizabeth Flecha Benitez"}]
[{"$f":"BG!D73","v":"Sindico Titular"},null,{"$f":"BG!F73","v":"Contador"}]

{"sheet":"EVPN","index":3,"n_rows":40,"n_cols":20,"rows_kept":40,"cut":false,"hidden":false,"merged":[[10,17,11,17],[10,19,11,19],[5,0,5,15],[6,0,6,15],[10,2,11,2],[10,5,11,5],[10,7,11,7],[10,9,11,9],[10,11,11,11],[10,13,11,13],[10,15,11,15],[10,0,11,0],[9,2,9,5],[9,11,9,15],[39,2,39,7],[38,2,38,7],[39,9,39,11],[38,9,38,11],[38,13,38,17],[39,13,39,17]]}
[{"$f":"Indice!C1","v":"GAS CORONA S.A.E.C.A."},null,null,null,null,null,null,"Indice"]
[]
[]
[null,null,null,null,null,"ESTADO DE EVOLUCIÓN DEL PATRIMONIO NETO"]
[null,null,null,null,null,null,null,{"$f":"IFERROR(IF(Indice!B6=\"\",\"Al dia... de mes… de año 2XX2…\",\"Al \"&DAY(Indice!B6)&\" de \"&VLOOKUP(MONTH(Indice!B6),Indice!S:T,2,0)&\" de \"&YEAR(Indice!B6)),\"Al dia... de mes… de año 2XX2…\")","v":"Al 30 de Septiembre de 2021"}]
["Comparativo con igual periodo del año anterior"]
["(Expresado en  guaraníes)"]
[]
[]
[null,null,"Aporte de los propietarios",null,null,null,null,null,null,null,null,"Ganancias reservadas"]
[null,null,"Capital suscripto e integrado","Aporte para",null,"Primas de emisión",null,"Reserva de revalúo",null,"Reserva de revalúo técnico",null,"Reserva legal",null,"Reserva \nfacultativa",null,"Resultados acumulados",null,"Interes Minoritario",null,"Total"]
[null,null,null,"aumento de capital",null,null,null,null,null,null,null,null,null,null,null,"Total"]
[]
[{"$f":"IFERROR(IF(Indice!B6=\"\",\"Saldo al .. de  de 20X0 \",\"Saldo al \"&DAY(Indice!B6)&\" de \"&VLOOKUP(MONTH(Indice!B6),Indice!S:T,2,0)&\" de \"&YEAR(Indice!B6-730)),\"Saldo al .. de  de 20X0 \")","v":"Saldo al 30 de Septiembre de 2019"},null,48000000000,0,null,0,0,1052061213,null,0,null,6931012994,null,0,null,11887053782,null,null,null,{"$f":"SUM(C14:P14)","v":67870127989}]
["Saldo al 31 de diciembre de 2019",null,48000000000,null,null,null,null,1052061213,null,null,null,6931012994,null,null,null,24614338753,null,null,null,80597412960]
["Saldo reestructurado",null,{"$f":"C15","v":48000000000},{"$f":"D14","v":0},0,0,0,{"$f":"H15","v":1052061213},0,0,0,{"$f":"L15","v":6931012994},0,0,0,{"$f":"P15","v":24614338753},null,null,null,80597412960]
["Distribución de dividendos s/Acta de Asamblea General Ordinaria N° 458/20 de fecha 19/06/2020",null,null,null,null,null,null,null,null,null,null,null,null,null,null,-24466399966,null,null,null,-24466399966]
["Integración del capital social",null,null,null,null,null,null,null,null,null,null,null,null,null,null,null,null,null,null,0]
["Aumento del capital social s/Acta de Asamblea General Ordinaria N° 458 de fecha 19/06/2020",null,1200000000,null,null,null,null,-1052061213,null,null,null,0,null,null,null,-147938787,null,null,null,0]
["Revalúo de activos fijos",null,0,null,null,null,null,0,null,null,null,null,null,null,null,null,null,null,null,0]
["Revalúo técnico",null,null,null,null,null,null,null,null,null,null,null,null,null,null,null,null,null,null,0]
["Resultado del año",null,null,null,null,null,null,null,null,null,null,null,null,null,null,19997379884,null,null,null,19997379884]
[]
[{"$f":"IFERROR(IF(Indice!B6=\"\",\"Saldo al .. de  de 20X1 \",\"Saldo al \"&DAY(Indice!B6)&\" de \"&VLOOKUP(MONTH(Indice!B6),Indice!S:T,2,0)&\" de \"&YEAR(Indice!B6-365)),\"Saldo al .. de  de 20X1 \")","v":"Saldo al 30 de Septiembre de 2020"},null,{"$f":"C16+C17+C18+C19+C21+C22+C20","v":49200000000},{"$f":"SUM(D14:D22)","v":0},null,{"$f":"F16+F17+F18+F19+F21+F22+F20","v":0},{"$f":"SUM(G14:G23)","v":0},{"$f":"H16+H17+H18+H19+H21+H22+H20","v":0},null,{"$f":"J16+J17+J18+J19+J21+J22+J20","v":0},null,{"$f":"L16+L17+L18+L19+L21+L22+L20","v":6931012994},null,{"$f":"N16+N17+N18+N19+N21+N22+N20","v":0},null,{"$f":"P16+P17+P18+P19+P21+P22+P20","v":19997379884},null,{"$f":"R16+R17+R18+R19+R21+R22+R20","v":0},null,{"$f":"T16+T17+T18+T19+T21+T22+T20","v":76128392878}]
["Saldo al 31 de diciembre de 2020",null,49200000000,null,null,null,null,null,null,null,null,8151731798,null,null,null,23193657282]
["Saldo reestructurado",null,{"$f":"C25","v":49200000000},null,null,null,null,null,null,null,null,{"$f":"L25","v":8151731798},null,null,null,{"$f":"P25","v":23193657282},null,null,null,{"$f":"C26+L26+P26","v":80545389080}]
["Distribución de dividendos s/Acta de Asamblea General Ordinaria N° 477/21 de fecha 16/04/2021",null,null,null,null,null,null,null,null,null,null,null,null,null,null,-22393657282,null,null,null,{"$f":"SUM(C27:P27)","v":-22393657282}]
["Integración del capital social",null,null,null,null,null,null,null,null,null,null,null,null,null,null,null,null,null,null,0]
["Capitalizacion de dividendos s/Acta de Asamblea General Ordinaria N° 477/21 de fecha 16/04/2021",null,800000000,null,null,null,null,0,null,null,null,null,null,null,null,-800000000,null,null,null,0]
["Revalúo de activos fijos",null,null,null,null,null,null,null,null,null,null,null,null,null,null,null,null,null,null,0]
["Desafectación de la reserva de revalúo técnico",null,null,null,null,null,null,null,null,null,null,null,null,null,null,null,null,null,null,0]
["Resultado del año",null,null,null,null,null,null,null,null,null,null,null,null,null,null,5594340806,null,null,null,5594340806]
[]
[{"$f":"IFERROR(IF(Indice!B6=\"\",\"Saldo al .. de  de 20X2 \",\"Saldo al \"&DAY(Indice!B6)&\" de \"&VLOOKUP(MONTH(Indice!B6),Indice!S:T,2,0)&\" de \"&YEAR(Indice!B6)),\"Saldo al .. de  de 20X2 \")","v":"Saldo al 30 de Septiembre de 2021"},null,{"$f":"C24+C27+C30+C31+C32+C29","v":50000000000},0,0,0,0,0,0,0,0,{"$f":"L26+L27","v":8151731798},{"$f":"M24+M27+M30+M31+M32+M29","v":0},{"$f":"N24+N27+N30+N31+N32+N29","v":0},{"$f":"O24+O27+O30+O31+O32+O29","v":0},{"$f":"P26+P27+P29+P32","v":5594340806},{"$f":"Q24+Q27+Q30+Q31+Q32+Q29","v":0},{"$f":"R24+R27+R30+R31+R32+R29","v":0},null,{"$f":"T26+T27+T32","v":63746072604}]
["Las notas que se acompañan forman parte integrante de estos estados."]
[]
[]
[]
[{"$f":"BG!D66","v":"Sra Luisa Isabel Schaerer de Pallares"},null,{"$f":"BG!E66","v":"Sra. Maria Celeste Pallares Viveros"},null,null,null,null,null,null,{"$f":"BG!C72","v":"Dr. Raul Fernando Vargas"},null,null,null,{"$f":"BG!E72","v":"C.P. Gloria Elizabeth Flecha Benitez"}]
[{"$f":"BG!D67","v":"Presidente "},null,{"$f":"BG!F67","v":"Vicepresidente"},null,null,null,null,null,null,{"$f":"BG!D73","v":"Sindico Titular"},null,null,null,{"$f":"BG!F73","v":"Contador"}]

{"sheet":"EFE","index":4,"n_rows":59,"n_cols":3,"rows_kept":59,"cut":false,"hidden":false,"merged":[[49,1,49,2],[50,1,50,2],[57,1,57,2],[58,1,58,2],[2,0,2,2],[4,0,4,2],[5,0,5,2],[6,0,6,2],[7,0,7,2]]}
[{"$f":"Indice!C1","v":"GAS CORONA S.A.E.C.A."}]
[]
[]
[]
["ESTADO DE FLUJOS DE EFECTIVO (Método directo)"]
[{"$f":"IFERROR(IF(Indice!B6=\"\",\"Al dia... de mes… de año 2XX2…\",\"Al \"&DAY(Indice!B6)&\" de \"&VLOOKUP(MONTH(Indice!B6),Indice!S:T,2,0)&\" de \"&YEAR(Indice!B6)),\"Al dia... de mes… de año 2XX2…\")","v":"Al 30 de Septiembre de 2021"}]
["Comparativo con igual periodo del año anterior"]
["(Expresado en  guaraníes)"]
[]
[]
[null,{"$f":"IFERROR(IF(Indice!B6=\"\",\"2XX2\",YEAR(Indice!B6)),\"2XX2\")","v":2021},{"$f":"IFERROR(YEAR(Indice!B6-365),\"2XX1\")","v":2020}]
[]
["FLUJO DE EFECTIVO DE ACTIVIDADES OPERATIVAS"]
["Cobranzas efectuadas a clientes",39201346622,43383810842]
["Pagos efectuados a proveedores y empleados",-34581656889,-40380972796]
["Efectivo generado por las operaciones",679807388,540504083]
["Intereses pagados",-1456870687,-1114524060]
["Otros ingresos y (egresos) - neto",-793220533,1085820077]
["Pagos de impuesto a la renta",-569439914,238391392]
["Flujo neto de efectivo de actividades operativas",{"$f":"SUM(B14:B19)","v":2479965987},{"$f":"SUM(C14:C19)","v":3753029538}]
[]
["FLUJO DE EFECTIVO DE ACTIVIDADES DE INVERSIÓN "]
["Adquisición de bienes de uso",-3574024207,6975596732]
["Adquisición de bienes Curtiembre - fideicomitida"]
["Ventas de activos fijos",0,0]
["Ventas de bienes de uso",0,0]
["Intereses cobrados sobre inversiones",0,0]
["Aquisición de inversiones",0,0]
["Flujo neto de efectivo de actividades de inversión",{"$f":"SUM(B23:B28)","v":-3574024207},{"$f":"SUM(C23:C28)","v":6975596732}]
[]
["FLUJO DE EFECTIVO DE ACTIVIDADES DE FINANCIACIÓN"]
["(Disminución) Incremento de préstamos",-2512405169,17047365151]
["Aportes de capital recibidos"]
["Dividendos pagados",-19197379884,-20757255207]
["Flujo neto de efectivo de actividades de financiamiento",{"$f":"B32+B33+B34","v":-21709785053},{"$f":"C32+C33+C34","v":-3709890056}]
[]
["(Disminución) Incremento neto de efectivo",-22803843273,7018736214]
["Efecto estimado de la diferencia de cambio sobre el saldo de efectivo",143057055,439797142]
["Efectivo al principio del año",28663887840,21205354484]
[]
["Efectivo al final del periodo",{"$f":"+SUM(B37:B39)","v":6003101622},{"$f":"+SUM(C37:C39)","v":28663887840}]
[null,{"$error":"#REF!"}]
["Las notas que se acompañan forman parte integrante de estos estados."]
[]
[]
[]
[]
[]
[]
[{"$f":"BG!D66","v":"Sra Luisa Isabel Schaerer de Pallares"},{"$f":"BG!E66","v":"Sra. Maria Celeste Pallares Viveros"}]
[{"$f":"BG!D67","v":"Presidente "},{"$f":"BG!F67","v":"Vicepresidente"}]
[]
[]
[]
[]
[]
[]
[{"$f":"BG!C72","v":"Dr. Raul Fernando Vargas"},{"$f":"BG!E72","v":"C.P. Gloria Elizabeth Flecha Benitez"}]
[{"$f":"BG!D73","v":"Sindico Titular"},{"$f":"BG!F73","v":"Contador"}]

{"sheet":"Nota1","index":5,"n_rows":237,"n_cols":9,"rows_kept":237,"cut":false,"hidden":false,"merged":[[6,9,6,11],[5,0,5,8],[6,0,6,7],[3,0,3,7],[226,0,226,2],[226,4,226,6],[236,0,236,2],[236,4,236,6],[227,0,227,2],[227,4,227,6],[228,0,228,2],[228,4,228,6],[235,0,235,2],[235,4,235,6]]}
[{"$f":"Indice!C1","v":"GAS CORONA S.A.E.C.A."},null,null,null,null,null,null,null,"BG"]
[]
[]
["NOTAS A LOS ESTADOS FINANCIEROS CORRESPONDIENTES AL PERIODO TERMINADO AL 30 /09/2021"]
["Presentadas en forma comparativa con el periodo terminado ",null,null,null,null,{"$f":"IFERROR(\"Al \"&DAY(Indice!B6)&\" de \"&VLOOKUP(MONTH(Indice!B6),Indice!S:T,2,0)&\" de \"&YEAR(Indice!B6-365),\"Al dia... de mes… de año 2XX1…\")","v":"Al 30 de Septiembre de 2020"}]
[" "]
["NOTA 1 – DESCRIPCIÓN DE LA NATURALEZA Y DEL NEGOCIO DE LA COMPAÑÍA"]
["Gas Corona Sociedad Anónima fue constituido por Escritura Pública Nº 61  "]
["de fecha 4 de agosto de 1971, pasada ante el Escribano Don José Livio "]
["Lezcano. Sus Estatutos Sociales fueron aprobados y reconocida su Personería "]
["Jurídica por Decreto del Poder Ejecutivo de la Nación Nº 22.810 de fecha 10 "]
["de noviembre  de 1971 e inscripto en el Registro Público de Comercio bajo el "]
["Nº 549, página 137 y siguientes, de fecha 25 de noviembre de 1971."]
[]
["Las modificaciones del Estatuto Social han sido las siguientes: "]
[]
["Primera Modificación de los Estatutos Sociales: Por aumento de capital, "]
["según Decreto del Poder Ejecutivo de la Nación Nº 14.778 del 9 de mayo de"]
[" 1975 e inscripta en el Registro Público de Comercio, bajo el número 171, de "]
["fecha 25 de Mayo de 1975, conforme en la Escritura Pública Nº 69 "]
["protocolizada ante el Escribano Gervasio Recalde, en fecha 18 de marzo de "]
["1975. "]
[]
["Segunda Modificación de los Estatutos Sociales: Por aumento de Capital, "]
["Escritura Pública Nº 14 de fecha 4 de setiembre de 1986, autorizada por el "]
["Escribano Público Octavio Godoy Cáceres aprobada por Decreto del Poder "]
["Ejecutivo Nº 18.996 de fecha 29 de diciembre de1986 e inscripta en el Registro "]
["Público de Comercio, bajo el Nº 114, de fecha 4 de setiembre de 1986. "]
[]
["Tercera Modificación de los Estatutos Sociales: Por Escritura Pública Nº 295 "]
["de fecha 3 de octubre de 1996 autorizada por la Escribana Pública Carmen "]
["Estigarribia de Fassanello. Inscripta en el Registro de Personas Jurídicas y "]
["Asociaciones, bajo el Nº 648 y en el folio 6948, Serie B, en fecha 21 de "]
["noviembre de 1996, y en Registro Público de Comercio con el Nº 896 – Serie "]
["C – Folio 8240 del 25 de Noviembre de 1996. "]
[]
["Cuarta Modificación de los Estatutos Sociales: Escritura de Aumento de "]
["Capital Social de la firma Gas Corona S.A. por Escritura Pública Nº 19 del 10 "]
["de setiembre de 2003 ante la Escribana Carmen Estigarribia de Fassanello e "]
["inscripto en el Registro de Personas Jurídicas y Asociaciones con el Nº 537 – "]
["Folio 5492 y siguientes -  Serie D del 4 de noviembre de 2003 y en el Registro "]
["Público de Comercio con el Nº 435 – Folio 435 – Folio 4356 y siguientes Serie "]
["C el 6 de noviembre de 2003. "]
[]
["Quinta Modificación de los Estatutos Sociales: Escritura de Aumento de "]
["Capital y transformación de la firma Gas Corona S.A, en Emisora de Capital"]
["Abierto por Escritura Pública Nº 10 de fecha 27 de mayo de 2005 ante la "]
["Escribana Carmen Estigarribia de Fassanello e inscripto en el Registro de "]
["Personas Jurídicas y Asociaciones con el Nº 225 – Folio 2995 y siguientes – "]
["Serie A el 26 de julio de 2005 y en el Registro Público de Comercio con el Nº "]
["241 – Folio 3552 y siguientes – Serie A el 26 de julio de  2005. "]
[]
["Sexta Modificación de los Estatutos Sociales: Escritura de Aumento de "]
["Capital Social de la firma Gas Corona S.A.E.C.A. por Escritura Pública Nº 84 "]
["del 14 de junio de 2007 ante la Escribana Carmen Estigarribia de Fassanello e "]
["inscripto en el Registro de Personas Jurídicas y Asociaciones con el Nº 283 – "]
["Folio 3239 y siguientes -  Serie A del 4 de setiembre de 2007 y en el Registro"]
["Público de Comercio con el Nº 544 - Folio 5648 y siguientes Serie A del 4 de"]
["setiembre de 2007. Escritura de Emisión de Acciones dentro del Capital "]
[]
[]
[]
[]
[]
["Social de la firma Gas Corona S.A.E.C.A. por Escritura Pública Nº 85 del 14 "]
["de junio de 2007 ante la Escribana Carmen Estigarribia de Fassanello e "]
["inscripto en el Registro Público de Comercio con el Nº 325 - Folio 5233 y "]
["siguientes Serie C del 6 de setiembre de 2007. "]
[]
["Séptima Modificación de los Estatutos Sociales: Escritura de Aumento de"]
["Capital Social y Emisión de Acciones dentro del Capital Social de la firma "]
["Gas Corona S.A.E.C.A. por Escritura Pública Nº 138 del 21 de agosto de 2008 "]
["ante la Escribana Carmen Paredes Cabrera e inscripto en el Registro de "]
["Personas Jurídicas y Asociaciones con el Nº 653– Folio 6355 y siguientes -  "]
["Serie C del 25 de setiembre de 2008 y en el Registro Público de Comercio con "]
["el Nº 734 - Folio 6612 y siguientes Serie E del 25 de setiembre de 2008. "]
[]
["Protocolización Acta de Asamblea: Escritura de Protocolización por "]
["integración del  Capital Social  de la firma Gas Corona S.A.E.C.A. por "]
["Escritura Pública Nº 19 del 16 de marzo de 2010 ante la Escribana Carmen"]
["Paredes Cabrera e inscripto en el Registro de Personas Jurídicas y "]
["Asociaciones con el Nº 69 – Folio 776 y siguientes -  Serie G del 07 de abril de "]
["2010 y en el Registro Público de Comercio con el Nº 191 - Folio 2204 y "]
["siguientes - Serie F del 7 de abril de 2010. "]
[]
["Octava Modificación de los Estatutos Sociales: Escritura de Aumento de "]
["Capital Social y Emisión de Acciones dentro del Capital Social de la firma "]
["Gas Corona S.A.E.C.A. por Escritura Pública Nº 195 del 22 de julio de 2010 "]
["ante la Escribana Carmen Paredes Cabrera e inscripto en el Registro de "]
["Personas Jurídicas y Asociaciones con el Nº 423 – Folio 5203 y siguientes -  "]
["Serie B del 1 de setiembre de 2010 y en el Registro Público de Comercio con "]
["el Nº 456 - Folio 4004 y siguientes - Serie C del 1 de setiembre de 2010. "]
[]
["Protocolización Acta de Asamblea: Escritura de Protocolización por "]
["integración el Capital Social de la firma Gas Corona S.A.E.C.A. por Escritura "]
["Pública Nº 83 del 31 de agosto de 2011 ante la Escribana Carmen Paredes "]
["Cabrera e inscripto en el Registro Público de Comercio Sección Contratos"]
["bajo el Nº 407- Folio 4340 y siguientes - Serie H del 12 de septiembre de 2011."]
[]
["Novena  Modificación de los Estatutos Sociales: Escritura de Aumento de "]
["Capital Social y Emisión de Acciones dentro del Capital Social de la firma "]
["Gas Corona S.A.E.C.A. por Escritura Pública Nº 17 del 05 de octubre de 2012 "]
["ante la Escribana Myrian Garcete de Enciso Cuquejo e inscripto en el Registro "]
["Público de Comercio Sección Contratos bajo el Nº 1546- Folio 14406 y "]
["siguientes – Serie A del 19 de noviembre de 2012."]
[]
["Protocolización Acta de Asamblea: Escritura de Protocolización por "]
["integración el Capital Social de la firma Gas Corona S.A.E.C.A. por Escritura "]
["Pública Nº 19, folio 31 y sgtes.  del 16 de agosto de 2013 ante la Escribana "]
["Myrian Garcete de Enciso e inscripto en el Registro Público de Comercio "]
["Sección Contratos bajo el Nº 157- Folio 1838 y siguientes - Serie E del 02 de "]
["septiembre de 2013."]
[]
["Decima  Modificación de los Estatutos Sociales: Escritura de Aumento de "]
["Capital Social y Emisión de Acciones dentro del Capital Social de la firma "]
["Gas Corona S.A.E.C.A. por Escritura Pública Nº 19 del 03 de noviembre de "]
["2014 ante la Escribana Myrian Garcete de Enciso Cuquejo e inscripto en el "]
["Registro Público de Comercio en la Serie C,  bajo el Nº 560- Folio 6394 y"]
["siguientes y en el Registro Público de Contratos bajo el Nro. 336, Serie E – "]
["Folio 3351 de fecha 17 de julio de 2014."]
[]
[]
[]
[]
[]
[]
[]
[]
["Protocolización Acta de Asamblea: Escritura de Protocolización por "]
["integración el Capital Social de la firma Gas Corona S.A.E.C.A. por Escritura "]
["Pública Nº 05, folio 07 y sgtes.  del 01 de julio de 2015 ante la Escribana "]
["Myrian Garcete de Enciso e inscripto en el Registro Público de Comercio, "]
["Matricula Nro. 724,  bajo el Nº 01 Folio 01-07 y siguientes – Serie Comercial "]
["del 02 de julio de 2015."]
[]
["Decima  Primera Modificación de los Estatutos Sociales: Escritura de "]
["Aumento de Capital Social y Emisión de Acciones dentro del Capital Socia"]
["de la firma Gas Corona S.A.E.C.A. por Escritura Pública Nº 3 del 06 de mayo "]
["de 2016 ante la Escribana Myrian Garcete de Enciso Cuquejo e inscripto en el "]
["Registro Público de Comercio Sección Personas Jurídicas y Asociaciones,  en "]
["la Serie C,  bajo el Nº 1 Folio 6394 y siguientes y en el Registro Público de "]
["Contratos bajo el Nro. 336, Serie Folio 1 de fecha 15 de junio de 2016. Y en la "]
["Dirección de los Registros Públicos Sección Comercio en la Serie C, bajo el "]
["Nro. 02, folio 08-17, de fecha 15/06/2016."]
[]
["Decima  Segunda Modificación de los Estatutos Sociales: Escritura de "]
["Aumento de Capital Social y Emisión de Acciones dentro del Capital Social "]
["de la firma Gas Corona S.A.E.C.A. por Escritura Pública Nº 7 del 15 de junio "]
["de 2017 ante la Escribana Myrian Garcete de Enciso Cuquejo e inscripto en el "]
["Registro Público de Comercio Sección Personas Jurídicas y Asociaciones,  en"]
["la Serie Comercial,  bajo el Nº 2,  Folio 13  en fecha 23/08/2017 y en la"]
["Dirección Gral. Registro Público; Sección Comercio bajo el Nro. 03,  Folio 18 "]
["de fecha 29 de setiembre de 2017. "]
[]
["Protocolización Acta de Asamblea: Escritura de Protocolización por "]
["integración el Capital Social de la firma Gas Corona S.A.E.C.A. por Escritura "]
["Pública Nº 13, folio 36 y sgtes.  del 04 de junio de 2018 ante la Escribana "]
["Myrian Garcete de Enciso e inscripto en el Registro Público de Comercio, "]
["Matricula Nro. 724,  bajo el Nº 4 Folio 28-36 y siguientes – Serie Comercial del "]
["15  de octubre de 2018."]
[]
["Decima  Tercera Modificación de los Estatutos Sociales: Escritura de "]
["Aumento de Capital Social y Emisión de Acciones dentro del Capital Social "]
["de la firma Gas Corona S.A.E.C.A. por Escritura Pública Nº 20 del 04 de junio "]
["de 2019 ante la Escribana Myrian Garcete de Enciso Cuquejo e inscripto en el "]
["Registro Público de Comercio Sección Personas Jurídicas y Asociaciones,  en"]
["la  Serie  Comercial,  bajo el Nº 3,  Folio 26  en fecha  12/08/2019  y  en  la"]
["Dirección Gral. Registro Público; Sección Comercio bajo el Nro. 5,  Folio 37 "]
["de fecha 12 de agosto de 2019. "]
["Decima cuarta Modificacion de lo Estatutos Sociales: Escritura de "]
["Aumento de Capital Social y Emisión de Acciones dentro del Capital Social "]
["de la firma Gas Corona S.A.E.C.A. por Escritura Pública Nº 7 del 13 de mayo "]
["de 2021 ante la Escribana Myrian Garcete de Enciso Cuquejo e inscripto en el "]
["Registro Público de Comercio Sección Personas Jurídicas y Asociaciones, y"]
["Comericio de la  Serie  C,  bajo el Nº 7,  Folio 58,  fecha  20/08/2021."]
[]
["El objetivo de la sociedad comprende todas la actividades lícitas a las que "]
["podrá dedicarse por cuenta propia, de terceros o asociados a terceros, y en "]
["especial al fraccionamiento y comercialización de los productos derivados"]
["del petróleo, la importación, comercialización, promoción y venta de toda "]
["clase de mercaderías, productos y elementos para cocinas a Gas y demás "]
["derivados; la importación de productos para el hogar. Podrá asimismo, "]
["comprar, vender, fraccionar, importar, exportar y envasar toda clase de "]
["productos, artículos y mercaderías, adquirir, establecer y exportar toda clase "]
["de empresas agrícolas, industriales, ganaderas y de cualquier otro tipo. "]
["Podrá también descontar, comprar y vender letras, pagarés, cheques, giros y "]
["otros documentos negociables, comprar y vender cédulas hipotecarias y "]
["cualquier otra clase de papeles negociables o títulos valores de oferta pública "]
["o privada. "]
[]
[]
[]
["La sociedad podrá emitir acciones, obligaciones u otros títulos valores y "]
["podrán ser negociables en oferta pública a través del Mercado de Valores de "]
["conformidad a las leyes que regulan este mercado. La sociedad podrá actuar "]
["por cuenta propia, de terceros o asociada con otras personas o sociedades "]
["participando en su capital. La Sociedad queda autorizada con plena "]
["capacidad jurídica para entender y desarrollar cualquier tipo de actividades "]
["comerciales, industriales, inmobiliarias, empresariales o cualquier otra "]
["actividad lícita sin más limitaciones que las previstas en las leyes respectivas "]
["y este estatuto. "]
[]
["El Capital Social se fija en la suma de Gs. 52.000.000.000 (Guaraníes Cincuenta "]
["y dos mil millones) y estará dividida en cincuenta y dos  series de Gs. 1.000.000.000"]
["(Guaraníes un mil millones) cada serie. Cada serie estará compuesta"]
["de 100 (cien) acciones, de Gs. 10.000.000 (Guaraníes diez millones)."]
[]
["La Sociedad tendrá una duración de cincuenta (50) años contados a partir del "]
["día en que la modificación de los Estatutos Sociales sea registrada en los "]
["correspondientes Registros Públicos, pudiendo ser prorrogado su término o "]
["anticiparse su disolución por resolución de la Asamblea General de "]
["Accionistas."]
[]
["En fecha 30 de agosto de 2005, según Resolución Nº 877/05, la Comisión "]
["Nacional de Valores resuelve, calificar a Gas Corona Sociedad Anónima "]
["como Sociedad Emisora de Capital Abierto, y en consecuencia autorizarla "]
["para operar en el mercado de valores e inscribirla en los Registros que al "]
["efecto lleva la Comisión, llevando la nomenclatura de S.A.E.C.A. "]
[]
[]
[]
[]
[]
[]
[]
[]
[]
[{"$f":"BG!D66","v":"Sra Luisa Isabel Schaerer de Pallares"},null,null,null,{"$f":"BG!E66","v":"Sra. Maria Celeste Pallares Viveros"}]
[{"$f":"BG!D67","v":"Presidente "},null,null,null,{"$f":"BG!F67","v":"Vicepresidente"}]
[]
[]
[]
[]
[]
[]
[{"$f":"BG!C72","v":"Dr. Raul Fernando Vargas"},null,null,null,{"$f":"BG!E72","v":"C.P. Gloria Elizabeth Flecha Benitez"}]
[{"$f":"BG!D73","v":"Sindico Titular"},null,null,null,{"$f":"BG!F73","v":"Contador"}]

{"sheet":"Nota 2","index":6,"n_rows":108,"n_cols":9,"rows_kept":108,"cut":false,"hidden":false,"merged":[[86,0,86,3],[53,9,53,10],[54,9,54,10],[76,9,76,10],[62,9,62,10],[63,9,63,10],[56,9,56,10],[57,9,57,10],[58,9,58,10],[63,0,63,8],[57,0,57,8],[58,0,58,8],[64,0,64,8],[59,0,59,8],[16,0,16,8],[17,0,17,8],[37,0,37,8],[80,9,80,10],[81,9,81,10],[66,0,66,8],[66,9,66,10],[68,9,68,10],[54,0,54,8],[55,9,55,10],[55,0,55,8],[68,0,68,8],[76,0,76,8],[64,9,64,10],[65,9,65,10],[65,0,65,8],[19,0,19,8],[18,0,18,8],[35,0,35,8],[36,0,36,8],[33,0,33,8],[52,0,52,8],[56,0,56,8],[53,0,53,8],[108,0,108,8],[88,0,88,8],[89,0,89,8],[77,0,77,8],[81,0,81,8],[78,0,78,8],[82,0,82,8],[84,0,84,8],[79,0,79,8],[90,0,90,8],[91,0,91,8],[60,0,60,8],[62,0,62,8],[5,0,5,8],[39,0,39,8],[47,0,47,8],[51,0,51,8],[46,0,46,8],[48,0,48,8],[15,0,15,8],[6,0,6,8],[14,0,14,8],[10,0,10,8],[11,0,11,8],[34,0,34,8],[31,0,31,8],[40,0,40,8],[9,0,9,8],[13,0,13,8],[107,0,107,1],[107,3,107,5],[97,0,97,1],[97,3,97,5],[98,0,98,1],[98,3,98,5],[106,0,106,1],[106,3,106,5]]}
[{"$f":"Indice!C1","v":"GAS CORONA S.A.E.C.A."},null,null,null,null,null,null,null,"BG"]
[]
[]
[]
[]
["NOTA 2 - RESUMEN DE LAS PRINCIPALES POLÍTICAS CONTABLES"]
["Resumen de las principales políticas contables: a modo referencial, se incluyen las siguientes revelaciones de políticas contables en estados financieros de uso general que podrá ser tenida en consideración por las sociedades emisoras para la preparación de este capítulo de los estados financieros:"]
[]
[]
["a.   Bases de contabilización (Según NIF Bases de preparación de los Estados Financieros)"]
["Los estados financieros se han preparado siguiendo los criterios de las Normas de Información Financiera (NIF) emitidas por el Consejo de Contadores Públicos del Paraguay sobre la base de costos históricos, excepto para el caso de activos y pasivos en moneda extranjera.  Las propiedades, planta y equipo tuvieron ajustes por revaluación hasta finales del año 2019, sobre la base del coeficiente de variación del IPC anual. A partir del ejercicio 2020, la Ley 6380/2019 estableció que el revalúo se aplicará sobre las propiedades, planta y equipo, cuando el IPC acumulado desde la promulgación de la citada ley supere el 20%. Cabe destacar que al 30/09/2021, el coeficiente acumulado del IPC según el Banco Central del Paraguay, fue del 4,6%. En la República del Paraguay no se reconoce en forma integral los efectos de la inflación sobre la situación patrimonial y financiera de la sociedad, sobre los resultados de sus operaciones y los flujos de efectivo, en atención a que la corrección monetaria no constituye una práctica contable obligatoria en el Paraguay. \n"]
["De haberse aplicado una corrección monetaria integral de los estados financieros, podrían haber surgido diferencias en la presentación de la situación patrimonial y financiera de la sociedad, en los resultados de sus operaciones y en los flujos de efectivo al 30/09/2021. Según el índice general de precios del consumo (IPC) publicado por el Banco Central del Paraguay, la inflación acumulada al 30/09/2021 fue de 4,6%.\n\n"]
[]
[]
["b.   Uso de estimaciones contables"]
["La preparación de los presentes estados financieros requiere que la Gerencia de la sociedad realice estimaciones y evaluaciones que afectan el monto de los activos y pasivos registrados y contingentes, como así también los ingresos y egresos registrados en el ejercicio.  Los resultados reales futuros pueden diferir de las estimaciones y evaluaciones realizadas a la fecha de preparación de los presentes estados financieros."]
[]
["c.   Moneda extranjera"]
["Los activos y pasivos en moneda extranjera se valúan a los tipos de cambio vigentes a la fecha de cierre del ejercicio."]
["Las diferencias de cambio originadas por fluctuaciones en los tipos de cambio producidos entre las fechas de concertación de las operaciones y su liquidación o valuación al cierre del ejercicio, son reconocidas en resultados."]
[]
[]
[null,null,{"$f":"IFERROR(IF(Indice!B6=\"\",\"2XX2\",YEAR(Indice!B6)),\"2XX2\")","v":2021},null,null,null,{"$f":"IFERROR(YEAR(Indice!B6-365),\"2XX1\")","v":2020}]
[null,"Indicar moneda","Simbología según ISO 4217","Guaranies",null,"Indicar moneda","Simbología según ISO 4217","Guaranies"]
["Activos","DOLARES","USD ",{"$f":"23100930+50706610+199399367+178047142+2111082749","v":2562336798},null,"DOLARES","USD ",{"$f":"23729824+51321049+840593245+46062729+922894299","v":1884601146}]
[]
["Pasivos","DOLARES ","USD ",{"$f":"550509474+216208125","v":766717599},null,"DOLARES","USD ",{"$f":"2088759361+320451625+4759799","v":2413970785}]
[]
["Posición neta","DOLARES","USD ",{"$f":"D25-D28","v":2562336798},null,"DOLARES","USD ",{"$f":"H25-H27","v":-529369639}]
[]
[]
["A la fecha de emisión de estos estados financieros, el tipo de cambio de la moneda extranjera (Dólar Estadounidense) utilizado fue como sigue: Para los activos, TC Comprador Gs. 6.895,80; para los pasivos, TC Vendedor Gs. 6.918,66."]
[]
["d.   Efectivo y equivalentes de efectivo"]
["Se considerarán dentro del concepto de efectivo los saldos en efectivo, disponibilidades en cuentas bancarias y toda inversión de muy alta liquidez, con vencimiento originalmente pactado no superior a tres meses."]
[]
["e.   Inversiones"]
["Al cierre del trimestre, la Sociedad no poseía inversiones corrientes.\n"]
[]
["f. Previsión para cuentas de dudoso cobro/incobrables"]
["Las previsiones para cuentas de dudoso cobro se determinan al cierre de cada ejercicio y/o mensualmente sobre la base del estudio de la cartera de créditos realizado con el objeto de determinar la porción no recuperable de las cuentas a cobrar. Las previsiones para cuentas de dudoso cobro se determinan mensualmente de acuerdo con el siguiente esquema de cálculo: Detalle de la constitucion de las previsiones."]
["Criterios de Clasificación utilizados","De","A","% Previsiones  sobre Cartera "]
["Normal",1,90,0]
["En Gestión de Cobro",91,180,0.2]
["En Gestión de Cobro Judicial",181,10000,1]
[]
[]
["g. Inventarios"]
["Las existencias se valúan al menor entre su costo de adquisición o de producción y su valor neto de realización (NIF 12, párrafo 5). Para determinar el consumo (baja de inventarios) se aplicarán las fórmulas de costeo siguientes: PPP (Precio Promedio Ponderado)."]
[]
[]
["h. Activos disponibles para la venta"]
["Al cierre del trimestre, la Sociedad no mantenía activos disponbles para la venta."]
["i. Previsiones para desvalorización y deterioro de inventarios"]
["Las previsiones para desvalorización y deterioro de inventarios han sido estimadas tomando como base la valorización del stock deteriorado existente al cierre del ejercicio."]
[]
["j. Propiedades, planta y equipo"]
["Las propiedades, planta y equipo se exponen a su costo histórico ajustado por el coeficiente de revalúo emitido por la Autoridad Tributaria hasta el 31 de diciembre de 2019, menos la correspondiente depreciación acumulada. El incremento neto por la re-expresión se acredita a la respectiva reserva patrimonial, cuyo saldo puede ser utilizado únicamente para  aumentar el capital."]
["El costo de las mejoras que extienden la vida útil de los bienes o aumentan su capacidad productiva es imputado a las cuentas respectivas del activo. Los gastos de mantenimiento son cargados a resultados."]
["La depreciación es calculada por el método de línea recta y se aplica consistentemente de ejercicio a ejercicio. A partir del ejercicio 2020, la Ley 6380/2019 estableció la determinación obligatoria de una tasa de salvamento sobre los activos fijos, por lo que la base de la depreciación fue disminuido al valor histórico del activo menos su tasa de salvamento."]
["Los efectos de los ajustes sobre Propiedades, Planta y Equipo de operaciones discontinuadas se exponen formando parte de la línea “Resultados sobre actividades discontinuadas neto de impuesto a la renta” en el Estado de Resultados."]
[]
[]
["k. Intangibles"]
["Los intangibles se exponen a su costo incurrido menos las correspondientes amortizaciones acumuladas al cierre del año."]
["Las amortizaciones son calculadas por el método que refleja el patrón de consumo de los beneficios económicos derivados de los intangibles o por el método de línea recta (se explica el método elegido) si el patrón no pudiera ser determinado de forma fiable (NIF 15, párrafo 64). Ver Nota 11."]
["Este rubro incluye costos incurridos por la sociedad relacionados con ingresos futuros."]
[]
[]
[]
[]
[]
[]
[]
[]
[]
["l. Goodwill"]
["La Sociedad no posee operaciones de Goodwill que deban ser expuestos."]
["m. Reconocimiento de ingresos y egresos"]
["Los ingresos y egresos son reconocidos en función de su devengamiento."]
[]
["n. Impuesto a la renta"]
["El impuesto a la renta que se carga a los resultados del año se basa en la utilidad contable antes de este concepto, ajustada por las partidas que la ley incluye o excluye para la determinación de la utilidad gravable a la que se aplica la tasa legal vigente del impuesto y por el reconocimiento del cargo o el ingreso originado por la aplicación del impuesto diferido, si los hubiere. "]
[]
["o. Restricciones a la distribución de utilidades"]
["No se podra hacer Distribucion provisoria de dividendos durante el ejericio con cargo a las utilidades del mismo, Los dividendos no cobrados prescribiran a favor de la sociedad a los cinco"]
["años de la fecha en que fueron autorizados los respectivos pagos"]
[]
["p. Derechos en Fideicomiso"]
["La Sociedad no cuenta con operaciones de fideicomiso que reportar."]
["q. Otros principios, prácticas y métodos"]
["La Sociedad ha mantenido de manera uniforme y constante las políticas contables arriba mencionadas y no existieron modificaciones sustanciales que pudieran ser reportables."]
[]
[]
[]
[]
[]
[{"$f":"BG!D66","v":"Sra Luisa Isabel Schaerer de Pallares"},null,null,{"$f":"BG!E66","v":"Sra. Maria Celeste Pallares Viveros"}]
[{"$f":"BG!D67","v":"Presidente "},null,null,{"$f":"BG!F67","v":"Vicepresidente"}]
[]
[]
[]
[]
[]
[]
[]
[{"$f":"BG!C72","v":"Dr. Raul Fernando Vargas"},null,null,{"$f":"BG!E72","v":"C.P. Gloria Elizabeth Flecha Benitez"}]
[{"$f":"BG!D73","v":"Sindico Titular"},null,null,{"$f":"BG!F73","v":"Contador"}]

{"sheet":"Nota 3","index":7,"n_rows":48,"n_cols":5,"rows_kept":48,"cut":false,"hidden":false,"merged":[[35,1,35,3],[36,1,36,3],[46,2,46,3],[47,2,47,3],[11,0,11,3],[12,0,12,3]]}
[]
[]
[]
[]
[]
[{"$f":"Indice!C1","v":"GAS CORONA S.A.E.C.A."},null,null,null,"BG"]
[]
[]
[]
[]
[]
["NOTA 3 - EFECTIVO Y EQUIVALENTE DE EFECTIVO"]
["Expresado en Guaranies"]
[]
["En la cuenta Recauadaciones a depositar se incluye los depositos pendientes de confirmacion en los bancos, en la cuenta Bancos se registra "]
["los saldos en la cuentas corrientes y  caja de ahorros; y la cuenta Fondos Fijos, son fondos de caja chica que maneja la empresa."]
["La composición de la cuenta es la siguiente:"]
[]
["Concepto",null,{"$f":"IFERROR(IF(Indice!B6=\"\",\"2XX2\",YEAR(Indice!B6)),\"2XX2\")","v":2021},{"$f":"IFERROR(YEAR(Indice!B6-365),\"2XX1\")","v":2020}]
[]
["Caja"]
["Recaudaciones a depositar",null,1113098423,978648937]
["Bancos Locales - Moneda local Guaraníes",null,{"$f":"4770522269-C24","v":4342369150},{"$f":"27579389079-D24","v":26641412056}]
["Bancos Locales - Moneda extranjera Dólares",null,{"$f":"50706610+199399367+178047142","v":428153119},{"$f":"51321049+840593245+46062729","v":937977023}]
["Bancos Locales - Moneda extranjera otros",null,0,0]
["Bancos en el Extranjero - Moneda extranjera Dólares",null,0,0]
["Fondo Fijo  - Moneda local Guaraníes",null,119480930,105849824]
["Total",null,{"$f":"SUM($C$21:C27)","v":6003101622},{"$f":"SUM($D$21:D27)","v":28663887840}]
[]
[]
[]
[]
[]
[]
[]
[{"$f":"BG!D66","v":"Sra Luisa Isabel Schaerer de Pallares"},{"$f":"BG!E66","v":"Sra. Maria Celeste Pallares Viveros"}]
[{"$f":"BG!D67","v":"Presidente "},{"$f":"BG!F67","v":"Vicepresidente"}]
[]
[]
[]
[]
[]
[]
[]
[]
[]
[{"$f":"BG!C72","v":"Dr. Raul Fernando Vargas"},null,{"$f":"BG!E72","v":"C.P. Gloria Elizabeth Flecha Benitez"}]
[{"$f":"BG!D73","v":"Sindico Titular"},null,{"$f":"BG!F73","v":"Contador"}]

{"sheet":"Nota 4","index":8,"n_rows":35,"n_cols":4,"rows_kept":35,"cut":false,"hidden":false,"merged":[[3,0,3,2],[6,1,6,2],[4,0,4,2]]}
[{"$f":"Indice!C1","v":"GAS CORONA S.A.E.C.A."},null,null,"BG"]
[]
[]
["NOTA 4 - INVERSIONES TEMPORALES"]
["NO APLICA PARA GAS CORONA ESTA NOTA"]
["La composición de la cuenta es la siguiente:"]
[]
["Concepto",{"$f":"IFERROR(IF(Indice!B6=\"\",\"2XX2\",YEAR(Indice!B6)),\"2XX2\")","v":2021},{"$f":"IFERROR(YEAR(Indice!B6-365),\"2XX1\")","v":2020}]
["Inversiones en Titulos del Sistema Financiero Local - Moneda Local Guaraníes",0,0]
["Inversiones en Titulos del Sistema Financiero Local - Moneda Extranjera Dólares",0,0]
["Inversiones en Titulos del Sistema Financiero Local - Moneda Extranjera otros",0,0]
["Inversiones en Mercado Bursatil Local - Moneda Local Guaraníes",0,0]
["Inversiones en Mercado Bursatil Local - Moneda Extranjera Dólares",0,0]
["Inversiones en Mercado Bursatil Extranjera - Moneda Extranjera Dólares",0,0]
["Inversiones en Mercado Bursatil Extranjera - Moneda Extranjera otros",0,0]
["Otras inversiones - Moneda Local Guaraníes",0,0]
["Otras inversiones - Moneda Extranjera Dólares",0,0]
["Total",{"$f":"SUM($B$9:B17)","v":0},{"$f":"SUM($C$9:C17)","v":0}]
[]
[]
[]
[]
[]
[]
["Sra Luisa Isabel Schaerer de Pallares",null,"Sra. Maria Celeste Pallares Viveros"]
["Presidente ",null,"Vicepresidente"]
[]
[]
[]
[]
[]
[]
[]
["Dr. Raul Fernando Vargas",null,"C.P. Gloria Elizabeth Flecha Benitez"]
["Sindico Titular",null,"Contador"]

{"sheet":"Nota 5","index":9,"n_rows":58,"n_cols":8,"rows_kept":58,"cut":false,"hidden":false,"merged":[[10,2,10,3],[34,2,34,3],[4,0,4,7],[5,0,5,7],[6,0,6,7]]}
[{"$f":"Indice!C1","v":"GAS CORONA S.A.E.C.A."},null,null,null,null,"BG"]
["Detallar cartera vencida y no vencida por clientes locales, extranjeros y partes relacionadas"]
["Se indicarán en este rubro todos los créditos a favor de la empresa provenientes de las  ventas de Mercaderías y/o servicios (atendiendo a la actividades ordinarias de  la empresa), separando las ventas locales en moneda nacional y/o extranjera de las ventas fuera del país en moneda nacional  y/o extranjera"]
[]
["NOTA  5 – CUENTAS POR COBRAR COMERCIALES"]
["Las cuentas por cobrar son al igual que cualquier activo de recursos económicos propiedad de la empresa que le genera un beneficio en el futuro; forma parte del activo corriente, cuya percepción se prevé para un tiempo máximo de doce meses\n"]
["Están constituidas por créditos a favor de GAS CORONA, originados por operaciones normales de la empresa a clientes varios y a  entidades relacionadas.\nComo medida de Control Financiero Contable, se concilian las cuentas por cobrar a entes relacionados, con los saldos contables de las instituciones o empresas relacionadas, y se investiaga todas las diferencias observadas.\n\n"]
["Las cuentas a cobrar se integran como sigue:"]
[]
[]
[null,null,"Expresado en Guaranies"]
[null,null,{"$f":"IFERROR(IF(Indice!B6=\"\",\"2XX2\",YEAR(Indice!B6)),\"2XX2\")","v":2021},{"$f":"IFERROR(YEAR(Indice!B6-365),\"2XX1\")","v":2020},null,"Composición de la cartera de créditos por ventas","2021-09-30"]
["Deudores por ventas locales","Moneda Local Guaraníes",{"$f":"3700588861+87040315","v":3787629176},{"$f":"3948330985+85689000","v":4034019985},null,"Situación","Monto","% Previsiones  sobre Cartera "]
["Deudores por ventas locales","Moneda Extranjera Dólares",0,0,null,"A  Total Cartera no Vencida",7049934981,0]
["Deudores por ventas locales","Moneda Extranjera otros",0,0,null,"B. Total Cartera Vencida",{"$f":"G17+G18+G19","v":7477745437}]
["Deudores por ventas en el exterior","Moneda Local Guaraníes",0,0,null,"Composición Cartera Vencida"]
["Deudores por ventas en el exterior","Moneda Extranjera Dólares",0,0,null,"Normal",801306586,0]
["Deudores por ventas en el exterior","Moneda Extranjera otros",0,0,null,"En Gestión de Cobro",927929595,0.290493]
["Deudores - Entidad relacionada","Moneda Local Guaraníes",4991541986,4741357062,null,"En Gestión de Cobro Judicial",5748509256,1]
["Deudores - Entidad relacionada","Moneda Extranjera Dólares",0,0]
["Deudores - Entidad relacionada","Moneda Extranjera otros",0,0,null,"Total de la cartera de créditos (A+B)",{"$f":"G14+G15","v":14527680418}]
["Cheques adelantados recibidos de clientes","Moneda Local Guaraníes",7884848692,9651171528]
["Cheques adelantados recibidos de clientes","Moneda Extranjera Dólares",0,0,null,"(-) Total Previsiones",{"$f":"-((G14*H14)+(SUMPRODUCT(G17:G19,H17:H19)))","v":-6018066307.8403349}]
["Cheques adelantados recibidos de clientes","Moneda Extranjera otros",0,0]
["Cheques rechazados","Moneda Local Guaraníes",3330767395,3254388933,null,"TOTAL  NETO DE LA CARTERA DE CRÉDITOS",{"$f":"G21+G23","v":8509614110.1596651}]
["Cheques rechazados","Moneda Extranjera Dólares",0,0]
["Gestion de Cobro","Moneda Local Guaraníes",5748509256,5748509256,null,"Observaciones"]
["Otros Creditos","Moneda Extranjera Dólares",0,0,null,"Criterios de Clasificación utilizados","De","A"]
["Otros Creditos","Moneda Extranjera otros",0,0,null,"Normal",1,90]
["Menos Previsiones",null,-9272106014,{"$f":"-269556575-5598509256-150000000-3254040183","v":-9272106014},null,"En Gestión de Cobro",91,180]
["Total",null,{"$f":"+SUM($C$13:C30)","v":16471190491},{"$f":"+SUM($D$13:D30)","v":18157340750},null,"En Gestión de Cobro Judicial",181,10000]
[]
[]
["Las cuentas a cobrar comerciales a largo plazo se integran como sigue:"]
[]
[null,null,{"$f":"IFERROR(IF(Indice!B6=\"\",\"2XX2\",YEAR(Indice!B6)),\"2XX2\")","v":2021},{"$f":"IFERROR(YEAR(Indice!B6-365),\"2XX1\")","v":2020}]
["Deudores por ventas locales","Moneda Local Guaraníes"]
["Deudores por ventas locales","Moneda Extranjera Dólares",null,null,null,"Sra Luisa Isabel Schaerer de Pallares","Sra. Maria Celeste Pallares Viveros"]
["Deudores por ventas locales","Moneda Extranjera otros",null,null,null,"Presidente ","Vicepresidente"]
["Deudores por ventas en el exterior","Moneda Local Guaraníes"]
["Deudores por ventas en el exterior","Moneda Extranjera Dólares"]
["Deudores por ventas en el exterior","Moneda Extranjera otros"]
["Deudores - Entidad relacionada","Moneda Local Guaraníes"]
["Deudores - Entidad relacionada","Moneda Extranjera Dólares"]
["Deudores - Entidad relacionada","Moneda Extranjera otros"]
["Cheques adelantados recibidos de clientes","Moneda Local Guaraníes"]
["Cheques adelantados recibidos de clientes","Moneda Extranjera Dólares",null,null,null,"Dr. Raul Fernando Vargas","C.P. Gloria Elizabeth Flecha Benitez"]
["Cheques adelantados recibidos de clientes","Moneda Extranjera otros",null,null,null,"Sindico Titular","Contador"]
["Deudores en gestión judicial","Moneda Local Guaraníes"]
["Deudores en gestión judicial","Moneda Extranjera Dólares"]
["Deudores en gestión judicial","Moneda Extranjera otros"]
["Cheques rechazados","Moneda Local Guaraníes"]
["Cheques rechazados","Moneda Extranjera Dólares"]
["Otros","Moneda Local Guaraníes"]
["Otros","Moneda Extranjera Dólares"]
["Otros","Moneda Extranjera otros"]
["Menos Previsiones"]
["Total",null,{"$f":"+SUM($C$37:C57)","v":0},{"$f":"+SUM($D$37:D57)","v":0}]

{"sheet":"Nota 6","index":10,"n_rows":28,"n_cols":7,"rows_kept":28,"cut":false,"hidden":false,"merged":[[3,0,3,6],[4,0,4,6],[5,0,5,6],[6,0,6,6],[7,0,7,6]]}
[{"$f":"Indice!C1","v":"GAS CORONA S.A.E.C.A."},null,null,"BG"]
[]
[]
["NOTA 6 - OTROS CRÉDITOS"]
["Expresado en Guaranies"]
["Se Registra los pagos anticipados a los proveedores, los derechos de cobros a los terceros no provenientes de la Actividad Economica principal de la Empresa;  los saldos de Impuestos"]
["(Anticipos y Retenciones del Impuesto a la Renta Empresarial) y los gastos pagados por adelantados que compnen los insumos, repuestos, uniformes y otros que seran adsorbidos como"]
["gastos conforme se vayan utilizando."]
["El rubro de otros créditos se compone como sigue:"]
[]
["Corrientes",null,null,null,"No corrientes"]
[]
["Concepto",{"$f":"IFERROR(IF(Indice!B6=\"\",\"2XX2\",YEAR(Indice!B6)),\"2XX2\")","v":2021},{"$f":"IFERROR(YEAR(Indice!B6-365),\"2XX1\")","v":2020},null,"Concepto",{"$f":"IFERROR(IF(Indice!B6=\"\",\"2XX2\",YEAR(Indice!B6)),\"2XX2\")","v":2021},{"$f":"IFERROR(YEAR(Indice!B6-365),\"2XX1\")","v":2020}]
["Anticipos a proveedores",2111082749,922894299,null,"Garantía de Alquiler",0,0]
["Gastos pagados por adelantado",{"$f":"2893231151-1385219179","v":1508011972},{"$f":"2264921416-1235178077","v":1029743339},null,"I.V.A. Crédito fiscal",0,0]
["Anticipo Impuesto a la Renta",2081406848,1546951428,null,"Anticipos a proveedores ",0,0]
["Retención Impuesto a la Renta",{"$f":"8439364+162352625","v":170791989},{"$f":"103070810+6563766","v":109634576},null,"Seguros a Vencer",0,0]
["Retención Impuesto al Valor agregado",0,0,null,"Total",{"$f":"SUM(F14:F17)","v":0},{"$f":"SUM(G14:G17)","v":0}]
["IVA Credito Fiscal",0,0]
["Deudores Varios",{"$f":"34279554+536588298+44825780","v":615693632},{"$f":"41515535+176865168+35183950","v":253564653}]
["Total",{"$f":"SUM($B$14:B20)","v":6486987190},{"$f":"SUM($C$14:C20)","v":3862788295}]
[]
[]
[]
[]
[]
["Sra Luisa Isabel Schaerer de Pallares","Sra. Maria Celeste Pallares Viveros",null,null,"Dr. Raul Fernando Vargas","C.P. Gloria Elizabeth Flecha Benitez"]
["                   Presidente ","Vicepresidente",null,null,"Sindico Titular","Contador"]

{"sheet":"Nota 7","index":11,"n_rows":35,"n_cols":4,"rows_kept":35,"cut":false,"hidden":false,"merged":[[10,1,10,2],[5,0,5,6],[3,0,3,2],[9,0,9,6],[6,0,6,6],[7,0,7,6],[8,0,8,6]]}
[{"$f":"Indice!C1","v":"GAS CORONA S.A.E.C.A."},null,null,"BG"]
[]
[]
["NOTA 7 – INVENTARIOS"]
[]
["Los inventarios representan el valor monetario de las materias primas y mercaderías que se encuentran almacenados y resguardados, para su posterior"]
["comercialización.  Los costos se valúan bajo el método del Promedio Ponderado. De manera obligatoria, la Empresa realiza las  conciliaciones de  los saldos "]
["en los libros con los respectivos inventarios físicos al final de cada mes. Este manejo contable permite a la Empresa mantener un control oportuno y así tener "]
["al final de cada periodo un estado confiable de la situación económica. "]
["Los bienes de cambio están compuestos de la siguiente manera:"]
[null,"Expresado en Guaraníes"]
["Concepto",{"$f":"IFERROR(IF(Indice!B6=\"\",\"2XX2\",YEAR(Indice!B6)),\"2XX2\")","v":2021},{"$f":"IFERROR(YEAR(Indice!B6-365),\"2XX1\")","v":2020}]
["Mercaderías GLP",10793978688,4294724960]
["Envases - Tanques  - Repuestos",{"$f":"18011141216+200003290+4426712","v":18215571218},{"$f":"17620289052+239245632","v":17859534684}]
["Importación en curso",767086779,520236711]
["Materia prima",0,0]
["Mercaderías Combustibles- Lubricantes",746017652,738869054]
["(-) Previsión para desvalorización y deterioro de inventario",0,0]
["Total ",{"$f":"SUM(B13:B18)","v":30522654337},{"$f":"SUM(C13:C18)","v":23413365409}]
[]
[]
[]
[]
[]
["Sra. Luisa Isabel Schaerer de Pallares","Sra. Maria Celeste Pallares Viveros"]
["               Presidente ","Vicepresidente"]
[]
[]
[]
[]
[]
[]
[]
["Dr. Raúl Fernando Vargas","C.P. Gloria Elizabeth Flecha Benitez"]
["       Sindico Titular","Contador"]

{"sheet":"Nota 8","index":12,"n_rows":23,"n_cols":12,"rows_kept":23,"cut":false,"hidden":false,"merged":[[3,0,3,5],[2,0,2,5],[21,0,21,2],[22,0,22,2],[21,9,21,11],[22,9,22,11],[22,5,22,8],[21,6,21,8],[21,3,21,5],[22,3,22,4],[4,0,4,5]]}
[{"$f":"Indice!C1","v":"GAS CORONA S.A.E.C.A."},null,null,"BG"]
[]
["NO APLICA "]
["Nota 8 - INVERSIONES EN ASOCIADAS"]
["Expresado en guaraníes"]
["Las inversiones en sociedades donde no se ejerce control se describen a continuación"]
["Periodo",{"$f":"IFERROR(IF(Indice!B6=\"\",\"2XX2\",YEAR(Indice!B6)),\"2XX2\")","v":2021},{"$f":"IFERROR(YEAR(Indice!B6-365),\"2XX1\")","v":2020}]
["Total Inversión",{"$f":"SUM($I$13:I18)","v":0},0,"<-- Indicar Monto"]
[]
["a) Datos sobre la sociedad:",null,null,null,null,null,"a) Datos sobre la inversión:"]
[null,null,null,{"$f":"IFERROR(IF(Indice!B6=\"\",\"2XX2\",YEAR(Indice!B6)),\"2XX2\")","v":2021}]
["Nombre de Sociedad","RUC","Cantidad de acciones","Total Patrimonio neto","Total del resultado",null,"Cantidad de\n acciones","Participación \nsobre los votos (%)","Total Inversión (miles de Gs)","Participación sobre\n el Patrimonio\n Neto (%)","Total valuación\n patrimonial\n proporcional","Resultado sobre\n inversiones"]
[null,null,null,null,null,null,null,null,null,null,{"$f":"J13*D13","v":0},{"$f":"J13*E13","v":0}]
[null,null,null,null,null,null,null,null,null,null,{"$f":"J14*D14","v":0},{"$f":"J14*E14","v":0}]
[null,null,null,null,null,null,null,null,null,null,0,0]
[null,null,null,null,null,null,null,null,null,null,0,0]
[null,null,null,null,null,null,null,null,null,null,0,0]
[null,null,null,null,null,null,null,null,null,null,0,0]
[]
[]
[]
["Sra Luisa Isabel Schaerer de Pallares",null,null,"Sra. Maria Celeste Pallares Viveros",null,null,"Dr. Raul Fernando Vargas",null,null,"C.P. Gloria Elizabeth Flecha Benitez"]
["                   Presidente ",null,null,"Vicepresidente",null,"Sindico Titular",null,null,null,"Contador"]

{"sheet":"Nota 9","index":13,"n_rows":43,"n_cols":13,"rows_kept":43,"cut":false,"hidden":false,"merged":[[5,0,5,12],[41,2,41,4],[42,2,42,4],[7,0,7,12],[8,0,8,12],[9,0,9,12],[10,0,10,12],[11,0,11,12],[6,0,6,12]]}
[{"$f":"Indice!C1","v":"GAS CORONA S.A.E.C.A."},null,null,null,null,null,null,null,null,null,null,"BG"]
[]
[]
[]
[]
["NOTA 9 - PROPIEDADES, PLANTA Y EQUIPO - NETO"]
["Expresado en  guaraníes"]
["Contempla las inversiones en bienes tangibles cuya vida útil esta regida por las Reglamentaciones emitidas por la Subsecretaria de  Estado de Tributación, los cuales son adquiridos, construidos con el propósito de ser"]
["utilizados para el desarrollo de la Empresa. Los componentes de la Propiedad, Planta y Equipo son registrados al costo de adquisición mas los gastos necesarios para su utilización. Las renovaciones y mejoras "]
["importantes realizadas porsterior a la adquisición de los elementos componentes de la Propiedad, Planta y Equipo solo se reconocen como Activos cuando mejoren las condiciones del Bien de manera tal que amplian "]
["su vida útil  o incrementa su capacidad de productividad."]
["Depreciación Acumulada: registra los movimientos de las depreciaciones por la perdida de capacidad operacional de los bienes de uso, teniendo en cuenta su vida útil."]
[]
[null,"Costo histórico revaluado al inicio del año -\nPeriodo","Adquisiciones","Bajas","Revalúo del año","Valor de origen revaluado al final del periodo","Depreciación acumulada revaluada al inicio del año","Depreciación del año","Bajas de depreciaciones acumuladas","Revalúo depreciación acumulada del año","Depreciación acumulada revaluada al final del año","Valor neto contable","Valor neto contable"]
[null,null,null,null,null,null,null,null,null,null,null,{"$f":"IFERROR(IF(Indice!B6=\"\",\"2XX2\",YEAR(Indice!B6)),\"2XX2\")","v":2021},{"$f":"IFERROR(YEAR(Indice!B6-365),\"2XX1\")","v":2020}]
["Inmuebles",8936968875,0,0,0,{"$f":"B16","v":8936968875},0,0,0,0,{"$f":"G16+H16-I16+J16","v":0},{"$f":"F16","v":8936968875},8936968875]
["Edificios y Mejoras",12928440112,0,0,0,{"$f":"B17+C17-D17+E17","v":12928440112},4168870687,{"$f":"(10857261*3)+(12522741*3)","v":70140006},0,0,{"$f":"G17+H17-I17+J17","v":4239010693},{"$f":"F17-K17","v":8689429419},8719615300]
["Maquinarias y Equipos",11222220078,88977463,0,0,{"$f":"B18+C18-D18+E18","v":11311197541},7301733743,{"$f":"40937302*3","v":122811906},0,0,{"$f":"G18+H18-I18+J18","v":7424545649},{"$f":"F18-K18","v":3886651892},3603990105]
["Maquinas de Oficina",109299967,0,0,0,{"$f":"B19+C19-D19+E19","v":109299967},100708415,{"$f":"200000*3","v":600000},0,0,101308415,7991552,10140916]
["Tanques p/Gas Licuado Petróleo",16418820463,0,0,0,16418820463,12654924335,{"$f":"75762150*3","v":227286450},0,0,12882210785,3536609678,-275205035]
["Instalaciones ",2461537878,15760000,0,0,2477297878,2047842729,{"$f":"20540363*3","v":61621089},0,0,2109463818,367834060,344324130]
["Muebles y Útiles",1138308424,{"$f":"29181350+11204024","v":40385374},0,0,1178693798,737835713,{"$f":"8529216*3","v":25587648},0,0,763423361,415270437,340288374]
["Muebles y Bancos de Trabajo",647486907,11016294,0,0,658503201,535356616,{"$f":"2206300*3","v":6618900},0,0,541975516,116527685,132632587]
["Herramientas",179954356,9979500,0,0,189933856,95944791,{"$f":"1341084*3","v":4023252},0,0,99968043,89965813,41523600]
["Equipos de Seguridad y Protección",1313335499,0,0,0,1313335499,1361716692,{"$f":"17721432*3","v":53164296},0,0,1414880988,-101545489,89626595]
["Equipos de Comunicación",344472924,11220543,0,0,355693467,333690724,{"$f":"505744*3","v":1517232},0,0,335207956,20485511,24505102]
["Rodados",24382888469,831720000,0,0,25214608469,17551734887,{"$f":"182668457*3","v":548005371},0,0,18099740258,7114868211,6833107035]
["Embarcación",29860051,0,0,0,29860051,4743285,{"$f":"99670*3","v":299010},0,0,5042295,24817756,25789540]
["Equipos de Informática",1009637541,34531563,0,0,1044169104,938631649,{"$f":"3681335*3","v":11044005},0,0,949675654,94493450,83293917]
["Equipos de Jardinería",17542918,0,0,0,17542918,17542921,0,0,0,{"$f":"G30+H30-I30+J30","v":17542921},-3,-3]
["Maquinarias Estaciones de Servicio",18190414103,0,0,0,18190414103,13592136072,{"$f":"72450284*3","v":217350852},0,0,{"$f":"G31+H31-I31+J31","v":13809486924},4380927179,4580006433]
["Obras y Proyectos en curso",3618553868,{"$f":"34828008+58207188","v":93035196},0,0,3711589064,0,0,0,0,0,3711589064,605342716]
["Barcaza",0,0,0,0,0,0,0,0,0,0,0,2542623680]
[null,0]
["Totales",{"$f":"SUM(B16:B34)","v":102949742433},1136625933,0,0,104086368366,{"$f":"SUM(G16:G34)","v":61443413259},1350070017,0,0,62793483276,{"$f":"SUM($L$16:L34)","v":41292885090},{"$f":"SUM($M$16:M34)","v":36638573867}]
[]
[]
[]
[]
[]
[]
["Sra. Luisa Isabel Schaerer de Pallares",null,"Sra. Maria Celeste Pallares Viveros",null,null,null,"Dr. Raúl Fernando Vargas",null,null,null,"C.P. Gloria Elizabeth Flecha Benitez"]
["                   Presidente ",null,"Vicepresidente",null,null,null,"Sindico Titular",null,null,null,"Contador"]

{"sheet":"Nota 10","index":14,"n_rows":42,"n_cols":3,"rows_kept":42,"cut":false,"hidden":false,"merged":[[3,34,3,39],[3,40,3,45],[3,46,3,51],[3,52,3,57],[3,58,3,63],[3,64,3,69],[3,4,3,9],[3,10,3,15],[3,16,3,21],[3,22,3,27],[3,28,3,33],[3,286,3,291],[3,292,3,297],[3,298,3,303],[3,304,3,309],[3,310,3,315],[3,316,3,321],[3,250,3,255],[3,256,3,261],[3,262,3,267],[3,268,3,273],[3,274,3,279],[3,280,3,285],[3,214,3,219],[3,220,3,225],[3,226,3,231],[3,232,3,237],[3,238,3,243],[3,244,3,249],[3,178,3,183],[3,184,3,189],[3,190,3,195],[3,196,3,201],[3,202,3,207],[3,208,3,213],[3,142,3,147],[3,148,3,153],[3,154,3,159],[3,160,3,165],[3,166,3,171],[3,172,3,177],[3,106,3,111],[3,112,3,117],[3,118,3,123],[3,124,3,129],[3,130,3,135],[3,136,3,141],[3,466,3,471],[3,472,3,477],[3,478,3,483],[3,484,3,489],[3,490,3,495],[3,496,3,501],[3,430,3,435],[3,436,3,441],[3,442,3,447],[3,448,3,453],[3,454,3,459],[3,460,3,465],[3,394,3,399],[3,400,3,405],[3,406,3,411],[3,412,3,417],[3,418,3,423],[3,424,3,429],[3,358,3,363],[3,364,3,369],[3,370,3,375],[3,376,3,381],[3,382,3,387],[3,388,3,393],[3,322,3,327],[3,328,3,333],[3,334,3,339],[3,340,3,345],[3,346,3,351],[3,352,3,357],[3,70,3,75],[3,76,3,81],[3,82,3,87],[3,88,3,93],[3,94,3,99],[3,100,3,105],[3,682,3,687],[3,688,3,693],[3,694,3,699],[3,700,3,705],[3,706,3,711],[3,712,3,717],[3,646,3,651],[3,652,3,657],[3,658,3,663],[3,664,3,669],[3,670,3,675],[3,676,3,681],[3,610,3,615],[3,616,3,621],[3,622,3,627],[3,628,3,633],[3,634,3,639],[3,640,3,645],[3,574,3,579],[3,580,3,585],[3,586,3,591],[3,592,3,597],[3,598,3,603],[3,604,3,609],[3,538,3,543],[3,544,3,549],[3,550,3,555],[3,556,3,561],[3,562,3,567],[3,568,3,573],[3,502,3,507],[3,508,3,513],[3,514,3,519],[3,520,3,525],[3,526,3,531],[3,532,3,537],[3,898,3,903],[3,904,3,909],[3,910,3,915],[3,916,3,921],[3,922,3,927],[3,928,3,933],[3,862,3,867],[3,868,3,873],[3,874,3,879],[3,880,3,885],[3,886,3,891],[3,892,3,897],[3,826,3,831],[3,832,3,837],[3,838,3,843],[3,844,3,849],[3,850,3,855],[3,856,3,861],[3,790,3,795],[3,796,3,801],[3,802,3,807],[3,808,3,813],[3,814,3,819],[3,820,3,825],[3,754,3,759],[3,760,3,765],[3,766,3,771],[3,772,3,777],[3,778,3,783],[3,784,3,789],[3,718,3,723],[3,724,3,729],[3,730,3,735],[3,736,3,741],[3,742,3,747],[3,748,3,753],[3,1114,3,1119],[3,1120,3,1125],[3,1126,3,1131],[3,1132,3,1137],[3,1138,3,1143],[3,1144,3,1149],[3,1078,3,1083],[3,1084,3,1089],[3,1090,3,1095],[3,1096,3,1101],[3,1102,3,1107],[3,1108,3,1113],[3,1042,3,1047],[3,1048,3,1053],[3,1054,3,1059],[3,1060,3,1065],[3,1066,3,1071],[3,1072,3,1077],[3,1006,3,1011],[3,1012,3,1017],[3,1018,3,1023],[3,1024,3,1029],[3,1030,3,1035],[3,1036,3,1041],[3,970,3,975],[3,976,3,981],[3,982,3,987],[3,988,3,993],[3,994,3,999],[3,1000,3,1005],[3,934,3,939],[3,940,3,945],[3,946,3,951],[3,952,3,957],[3,958,3,963],[3,964,3,969],[3,1330,3,1335],[3,1336,3,1341],[3,1342,3,1347],[3,1348,3,1353],[3,1354,3,1359],[3,1360,3,1365],[3,1294,3,1299],[3,1300,3,1305],[3,1306,3,1311],[3,1312,3,1317],[3,1318,3,1323],[3,1324,3,1329],[3,1258,3,1263],[3,1264,3,1269],[3,1270,3,1275],[3,1276,3,1281],[3,1282,3,1287],[3,1288,3,1293],[3,1222,3,1227],[3,1228,3,1233],[3,1234,3,1239],[3,1240,3,1245],[3,1246,3,1251],[3,1252,3,1257],[3,1186,3,1191],[3,1192,3,1197],[3,1198,3,1203],[3,1204,3,1209],[3,1210,3,1215],[3,1216,3,1221],[3,1150,3,1155],[3,1156,3,1161],[3,1162,3,1167],[3,1168,3,1173],[3,1174,3,1179],[3,1180,3,1185],[3,1546,3,1551],[3,1552,3,1557],[3,1558,3,1563],[3,1564,3,1569],[3,1570,3,1575],[3,1576,3,1581],[3,1510,3,1515],[3,1516,3,1521],[3,1522,3,1527],[3,1528,3,1533],[3,1534,3,1539],[3,1540,3,1545],[3,1474,3,1479],[3,1480,3,1485],[3,1486,3,1491],[3,1492,3,1497],[3,1498,3,1503],[3,1504,3,1509],[3,1438,3,1443],[3,1444,3,1449],[3,1450,3,1455],[3,1456,3,1461],[3,1462,3,1467],[3,1468,3,1473],[3,1402,3,1407],[3,1408,3,1413],[3,1414,3,1419],[3,1420,3,1425],[3,1426,3,1431],[3,1432,3,1437],[3,1366,3,1371],[3,1372,3,1377],[3,1378,3,1383],[3,1384,3,1389],[3,1390,3,1395],[3,1396,3,1401],[3,1762,3,1767],[3,1768,3,1773],[3,1774,3,1779],[3,1780,3,1785],[3,1786,3,1791],[3,1792,3,1797],[3,1726,3,1731],[3,1732,3,1737],[3,1738,3,1743],[3,1744,3,1749],[3,1750,3,1755],[3,1756,3,1761],[3,1690,3,1695],[3,1696,3,1701],[3,1702,3,1707],[3,1708,3,1713],[3,1714,3,1719],[3,1720,3,1725],[3,1654,3,1659],[3,1660,3,1665],[3,1666,3,1671],[3,1672,3,1677],[3,1678,3,1683],[3,1684,3,1689],[3,1618,3,1623],[3,1624,3,1629],[3,1630,3,1635],[3,1636,3,1641],[3,1642,3,1647],[3,1648,3,1653],[3,1582,3,1587],[3,1588,3,1593],[3,1594,3,1599],[3,1600,3,1605],[3,1606,3,1611],[3,1612,3,1617],[3,1978,3,1983],[3,1984,3,1989],[3,1990,3,1995],[3,1996,3,2001],[3,2002,3,2007],[3,2008,3,2013],[3,1942,3,1947],[3,1948,3,1953],[3,1954,3,1959],[3,1960,3,1965],[3,1966,3,1971],[3,1972,3,1977],[3,1906,3,1911],[3,1912,3,1917],[3,1918,3,1923],[3,1924,3,1929],[3,1930,3,1935],[3,1936,3,1941],[3,1870,3,1875],[3,1876,3,1881],[3,1882,3,1887],[3,1888,3,1893],[3,1894,3,1899],[3,1900,3,1905],[3,1834,3,1839],[3,1840,3,1845],[3,1846,3,1851],[3,1852,3,1857],[3,1858,3,1863],[3,1864,3,1869],[3,1798,3,1803],[3,1804,3,1809],[3,1810,3,1815],[3,1816,3,1821],[3,1822,3,1827],[3,1828,3,1833],[3,2194,3,2199],[3,2200,3,2205],[3,2206,3,2211],[3,2212,3,2217],[3,2218,3,2223],[3,2224,3,2229],[3,2158,3,2163],[3,2164,3,2169],[3,2170,3,2175],[3,2176,3,2181],[3,2182,3,2187],[3,2188,3,2193],[3,2122,3,2127],[3,2128,3,2133],[3,2134,3,2139],[3,2140,3,2145],[3,2146,3,2151],[3,2152,3,2157],[3,2086,3,2091],[3,2092,3,2097],[3,2098,3,2103],[3,2104,3,2109],[3,2110,3,2115],[3,2116,3,2121],[3,2050,3,2055],[3,2056,3,2061],[3,2062,3,2067],[3,2068,3,2073],[3,2074,3,2079],[3,2080,3,2085],[3,2014,3,2019],[3,2020,3,2025],[3,2026,3,2031],[3,2032,3,2037],[3,2038,3,2043],[3,2044,3,2049],[3,2410,3,2415],[3,2416,3,2421],[3,2422,3,2427],[3,2428,3,2433],[3,2434,3,2439],[3,2440,3,2445],[3,2374,3,2379],[3,2380,3,2385],[3,2386,3,2391],[3,2392,3,2397],[3,2398,3,2403],[3,2404,3,2409],[3,2338,3,2343],[3,2344,3,2349],[3,2350,3,2355],[3,2356,3,2361],[3,2362,3,2367],[3,2368,3,2373],[3,2302,3,2307],[3,2308,3,2313],[3,2314,3,2319],[3,2320,3,2325],[3,2326,3,2331],[3,2332,3,2337],[3,2266,3,2271],[3,2272,3,2277],[3,2278,3,2283],[3,2284,3,2289],[3,2290,3,2295],[3,2296,3,2301],[3,2230,3,2235],[3,2236,3,2241],[3,2242,3,2247],[3,2248,3,2253],[3,2254,3,2259],[3,2260,3,2265],[3,2626,3,2631],[3,2632,3,2637],[3,2638,3,2643],[3,2644,3,2649],[3,2650,3,2655],[3,2656,3,2661],[3,2590,3,2595],[3,2596,3,2601],[3,2602,3,2607],[3,2608,3,2613],[3,2614,3,2619],[3,2620,3,2625],[3,2554,3,2559],[3,2560,3,2565],[3,2566,3,2571],[3,2572,3,2577],[3,2578,3,2583],[3,2584,3,2589],[3,2518,3,2523],[3,2524,3,2529],[3,2530,3,2535],[3,2536,3,2541],[3,2542,3,2547],[3,2548,3,2553],[3,2482,3,2487],[3,2488,3,2493],[3,2494,3,2499],[3,2500,3,2505],[3,2506,3,2511],[3,2512,3,2517],[3,2446,3,2451],[3,2452,3,2457],[3,2458,3,2463],[3,2464,3,2469],[3,2470,3,2475],[3,2476,3,2481],[3,2842,3,2847],[3,2848,3,2853],[3,2854,3,2859],[3,2860,3,2865],[3,2866,3,2871],[3,2872,3,2877],[3,2806,3,2811],[3,2812,3,2817],[3,2818,3,2823],[3,2824,3,2829],[3,2830,3,2835],[3,2836,3,2841],[3,2770,3,2775],[3,2776,3,2781],[3,2782,3,2787],[3,2788,3,2793],[3,2794,3,2799],[3,2800,3,2805],[3,2734,3,2739],[3,2740,3,2745],[3,2746,3,2751],[3,2752,3,2757],[3,2758,3,2763],[3,2764,3,2769],[3,2698,3,2703],[3,2704,3,2709],[3,2710,3,2715],[3,2716,3,2721],[3,2722,3,2727],[3,2728,3,2733],[3,2662,3,2667],[3,2668,3,2673],[3,2674,3,2679],[3,2680,3,2685],[3,2686,3,2691],[3,2692,3,2697],[3,3058,3,3063],[3,3064,3,3069],[3,3070,3,3075],[3,3076,3,3081],[3,3082,3,3087],[3,3088,3,3093],[3,3022,3,3027],[3,3028,3,3033],[3,3034,3,3039],[3,3040,3,3045],[3,3046,3,3051],[3,3052,3,3057],[3,2986,3,2991],[3,2992,3,2997],[3,2998,3,3003],[3,3004,3,3009],[3,3010,3,3015],[3,3016,3,3021],[3,2950,3,2955],[3,2956,3,2961],[3,2962,3,2967],[3,2968,3,2973],[3,2974,3,2979],[3,2980,3,2985],[3,2914,3,2919],[3,2920,3,2925],[3,2926,3,2931],[3,2932,3,2937],[3,2938,3,2943],[3,2944,3,2949],[3,2878,3,2883],[3,2884,3,2889],[3,2890,3,2895],[3,2896,3,2901],[3,2902,3,2907],[3,2908,3,2913],[3,3274,3,3279],[3,3280,3,3285],[3,3286,3,3291],[3,3292,3,3297],[3,3298,3,3303],[3,3304,3,3309],[3,3238,3,3243],[3,3244,3,3249],[3,3250,3,3255],[3,3256,3,3261],[3,3262,3,3267],[3,3268,3,3273],[3,3202,3,3207],[3,3208,3,3213],[3,3214,3,3219],[3,3220,3,3225],[3,3226,3,3231],[3,3232,3,3237],[3,3166,3,3171],[3,3172,3,3177],[3,3178,3,3183],[3,3184,3,3189],[3,3190,3,3195],[3,3196,3,3201],[3,3130,3,3135],[3,3136,3,3141],[3,3142,3,3147],[3,3148,3,3153],[3,3154,3,3159],[3,3160,3,3165],[3,3094,3,3099],[3,3100,3,3105],[3,3106,3,3111],[3,3112,3,3117],[3,3118,3,3123],[3,3124,3,3129],[3,3490,3,3495],[3,3496,3,3501],[3,3502,3,3507],[3,3508,3,3513],[3,3514,3,3519],[3,3520,3,3525],[3,3454,3,3459],[3,3460,3,3465],[3,3466,3,3471],[3,3472,3,3477],[3,3478,3,3483],[3,3484,3,3489],[3,3418,3,3423],[3,3424,3,3429],[3,3430,3,3435],[3,3436,3,3441],[3,3442,3,3447],[3,3448,3,3453],[3,3382,3,3387],[3,3388,3,3393],[3,3394,3,3399],[3,3400,3,3405],[3,3406,3,3411],[3,3412,3,3417],[3,3346,3,3351],[3,3352,3,3357],[3,3358,3,3363],[3,3364,3,3369],[3,3370,3,3375],[3,3376,3,3381],[3,3310,3,3315],[3,3316,3,3321],[3,3322,3,3327],[3,3328,3,3333],[3,3334,3,3339],[3,3340,3,3345],[3,3706,3,3711],[3,3712,3,3717],[3,3718,3,3723],[3,3724,3,3729],[3,3730,3,3735],[3,3736,3,3741],[3,3670,3,3675],[3,3676,3,3681],[3,3682,3,3687],[3,3688,3,3693],[3,3694,3,3699],[3,3700,3,3705],[3,3634,3,3639],[3,3640,3,3645],[3,3646,3,3651],[3,3652,3,3657],[3,3658,3,3663],[3,3664,3,3669],[3,3598,3,3603],[3,3604,3,3609],[3,3610,3,3615],[3,3616,3,3621],[3,3622,3,3627],[3,3628,3,3633],[3,3562,3,3567],[3,3568,3,3573],[3,3574,3,3579],[3,3580,3,3585],[3,3586,3,3591],[3,3592,3,3597],[3,3526,3,3531],[3,3532,3,3537],[3,3538,3,3543],[3,3544,3,3549],[3,3550,3,3555],[3,3556,3,3561],[3,3922,3,3927],[3,3928,3,3933],[3,3934,3,3939],[3,3940,3,3945],[3,3946,3,3951],[3,3952,3,3957],[3,3886,3,3891],[3,3892,3,3897],[3,3898,3,3903],[3,3904,3,3909],[3,3910,3,3915],[3,3916,3,3921],[3,3850,3,3855],[3,3856,3,3861],[3,3862,3,3867],[3,3868,3,3873],[3,3874,3,3879],[3,3880,3,3885],[3,3814,3,3819],[3,3820,3,3825],[3,3826,3,3831],[3,3832,3,3837],[3,3838,3,3843],[3,3844,3,3849],[3,3778,3,3783],[3,3784,3,3789],[3,3790,3,3795],[3,3796,3,3801],[3,3802,3,3807],[3,3808,3,3813],[3,3742,3,3747],[3,3748,3,3753],[3,3754,3,3759],[3,3760,3,3765],[3,3766,3,3771],[3,3772,3,3777],[3,4138,3,4143],[3,4144,3,4149],[3,4150,3,4155],[3,4156,3,4161],[3,4162,3,4167],[3,4168,3,4173],[3,4102,3,4107],[3,4108,3,4113],[3,4114,3,4119],[3,4120,3,4125],[3,4126,3,4131],[3,4132,3,4137],[3,4066,3,4071],[3,4072,3,4077],[3,4078,3,4083],[3,4084,3,4089],[3,4090,3,4095],[3,4096,3,4101],[3,4030,3,4035],[3,4036,3,4041],[3,4042,3,4047],[3,4048,3,4053],[3,4054,3,4059],[3,4060,3,4065],[3,3994,3,3999],[3,4000,3,4005],[3,4006,3,4011],[3,4012,3,4017],[3,4018,3,4023],[3,4024,3,4029],[3,3958,3,3963],[3,3964,3,3969],[3,3970,3,3975],[3,3976,3,3981],[3,3982,3,3987],[3,3988,3,3993],[3,4354,3,4359],[3,4360,3,4365],[3,4366,3,4371],[3,4372,3,4377],[3,4378,3,4383],[3,4384,3,4389],[3,4318,3,4323],[3,4324,3,4329],[3,4330,3,4335],[3,4336,3,4341],[3,4342,3,4347],[3,4348,3,4353],[3,4282,3,4287],[3,4288,3,4293],[3,4294,3,4299],[3,4300,3,4305],[3,4306,3,4311],[3,4312,3,4317],[3,4246,3,4251],[3,4252,3,4257],[3,4258,3,4263],[3,4264,3,4269],[3,4270,3,4275],[3,4276,3,4281],[3,4210,3,4215],[3,4216,3,4221],[3,4222,3,4227],[3,4228,3,4233],[3,4234,3,4239],[3,4240,3,4245],[3,4174,3,4179],[3,4180,3,4185],[3,4186,3,4191],[3,4192,3,4197],[3,4198,3,4203],[3,4204,3,4209],[3,4570,3,4575],[3,4576,3,4581],[3,4582,3,4587],[3,4588,3,4593],[3,4594,3,4599],[3,4600,3,4605],[3,4534,3,4539],[3,4540,3,4545],[3,4546,3,4551],[3,4552,3,4557],[3,4558,3,4563],[3,4564,3,4569],[3,4498,3,4503],[3,4504,3,4509],[3,4510,3,4515],[3,4516,3,4521],[3,4522,3,4527],[3,4528,3,4533],[3,4462,3,4467],[3,4468,3,4473],[3,4474,3,4479],[3,4480,3,4485],[3,4486,3,4491],[3,4492,3,4497],[3,4426,3,4431],[3,4432,3,4437],[3,4438,3,4443],[3,4444,3,4449],[3,4450,3,4455],[3,4456,3,4461],[3,4390,3,4395],[3,4396,3,4401],[3,4402,3,4407],[3,4408,3,4413],[3,4414,3,4419],[3,4420,3,4425],[3,4786,3,4791],[3,4792,3,4797],[3,4798,3,4803],[3,4804,3,4809],[3,4810,3,4815],[3,4816,3,4821],[3,4750,3,4755],[3,4756,3,4761],[3,4762,3,4767],[3,4768,3,4773],[3,4774,3,4779],[3,4780,3,4785],[3,4714,3,4719],[3,4720,3,4725],[3,4726,3,4731],[3,4732,3,4737],[3,4738,3,4743],[3,4744,3,4749],[3,4678,3,4683],[3,4684,3,4689],[3,4690,3,4695],[3,4696,3,4701],[3,4702,3,4707],[3,4708,3,4713],[3,4642,3,4647],[3,4648,3,4653],[3,4654,3,4659],[3,4660,3,4665],[3,4666,3,4671],[3,4672,3,4677],[3,4606,3,4611],[3,4612,3,4617],[3,4618,3,4623],[3,4624,3,4629],[3,4630,3,4635],[3,4636,3,4641],[3,5002,3,5007],[3,5008,3,5013],[3,5014,3,5019],[3,5020,3,5025],[3,5026,3,5031],[3,5032,3,5037],[3,4966,3,4971],[3,4972,3,4977],[3,4978,3,4983],[3,4984,3,4989],[3,4990,3,4995],[3,4996,3,5001],[3,4930,3,4935],[3,4936,3,4941],[3,4942,3,4947],[3,4948,3,4953],[3,4954,3,4959],[3,4960,3,4965],[3,4894,3,4899],[3,4900,3,4905],[3,4906,3,4911],[3,4912,3,4917],[3,4918,3,4923],[3,4924,3,4929],[3,4858,3,4863],[3,4864,3,4869],[3,4870,3,4875],[3,4876,3,4881],[3,4882,3,4887],[3,4888,3,4893],[3,4822,3,4827],[3,4828,3,4833],[3,4834,3,4839],[3,4840,3,4845],[3,4846,3,4851],[3,4852,3,4857],[3,5218,3,5223],[3,5224,3,5229],[3,5230,3,5235],[3,5236,3,5241],[3,5242,3,5247],[3,5248,3,5253],[3,5182,3,5187],[3,5188,3,5193],[3,5194,3,5199],[3,5200,3,5205],[3,5206,3,5211],[3,5212,3,5217],[3,5146,3,5151],[3,5152,3,5157],[3,5158,3,5163],[3,5164,3,5169],[3,5170,3,5175],[3,5176,3,5181],[3,5110,3,5115],[3,5116,3,5121],[3,5122,3,5127],[3,5128,3,5133],[3,5134,3,5139],[3,5140,3,5145],[3,5074,3,5079],[3,5080,3,5085],[3,5086,3,5091],[3,5092,3,5097],[3,5098,3,5103],[3,5104,3,5109],[3,5038,3,5043],[3,5044,3,5049],[3,5050,3,5055],[3,5056,3,5061],[3,5062,3,5067],[3,5068,3,5073],[3,5434,3,5439],[3,5440,3,5445],[3,5446,3,5451],[3,5452,3,5457],[3,5458,3,5463],[3,5464,3,5469],[3,5398,3,5403],[3,5404,3,5409],[3,5410,3,5415],[3,5416,3,5421],[3,5422,3,5427],[3,5428,3,5433],[3,5362,3,5367],[3,5368,3,5373],[3,5374,3,5379],[3,5380,3,5385],[3,5386,3,5391],[3,5392,3,5397],[3,5326,3,5331],[3,5332,3,5337],[3,5338,3,5343],[3,5344,3,5349],[3,5350,3,5355],[3,5356,3,5361],[3,5290,3,5295],[3,5296,3,5301],[3,5302,3,5307],[3,5308,3,5313],[3,5314,3,5319],[3,5320,3,5325],[3,5254,3,5259],[3,5260,3,5265],[3,5266,3,5271],[3,5272,3,5277],[3,5278,3,5283],[3,5284,3,5289],[3,5650,3,5655],[3,5656,3,5661],[3,5662,3,5667],[3,5668,3,5673],[3,5674,3,5679],[3,5680,3,5685],[3,5614,3,5619],[3,5620,3,5625],[3,5626,3,5631],[3,5632,3,5637],[3,5638,3,5643],[3,5644,3,5649],[3,5578,3,5583],[3,5584,3,5589],[3,5590,3,5595],[3,5596,3,5601],[3,5602,3,5607],[3,5608,3,5613],[3,5542,3,5547],[3,5548,3,5553],[3,5554,3,5559],[3,5560,3,5565],[3,5566,3,5571],[3,5572,3,5577],[3,5506,3,5511],[3,5512,3,5517],[3,5518,3,5523],[3,5524,3,5529],[3,5530,3,5535],[3,5536,3,5541],[3,5470,3,5475],[3,5476,3,5481],[3,5482,3,5487],[3,5488,3,5493],[3,5494,3,5499],[3,5500,3,5505],[3,5866,3,5871],[3,5872,3,5877],[3,5878,3,5883],[3,5884,3,5889],[3,5890,3,5895],[3,5896,3,5901],[3,5830,3,5835],[3,5836,3,5841],[3,5842,3,5847],[3,5848,3,5853],[3,5854,3,5859],[3,5860,3,5865],[3,5794,3,5799],[3,5800,3,5805],[3,5806,3,5811],[3,5812,3,5817],[3,5818,3,5823],[3,5824,3,5829],[3,5758,3,5763],[3,5764,3,5769],[3,5770,3,5775],[3,5776,3,5781],[3,5782,3,5787],[3,5788,3,5793],[3,5722,3,5727],[3,5728,3,5733],[3,5734,3,5739],[3,5740,3,5745],[3,5746,3,5751],[3,5752,3,5757],[3,5686,3,5691],[3,5692,3,5697],[3,5698,3,5703],[3,5704,3,5709],[3,5710,3,5715],[3,5716,3,5721],[3,6082,3,6087],[3,6088,3,6093],[3,6094,3,6099],[3,6100,3,6105],[3,6106,3,6111],[3,6112,3,6117],[3,6046,3,6051],[3,6052,3,6057],[3,6058,3,6063],[3,6064,3,6069],[3,6070,3,6075],[3,6076,3,6081],[3,6010,3,6015],[3,6016,3,6021],[3,6022,3,6027],[3,6028,3,6033],[3,6034,3,6039]],"merged_total":13656,"flags":["merged_cut"]}
[{"$f":"Indice!C1","v":"GAS CORONA S.A.E.C.A."},null,"BG"]
[]
[]
["NOTA 10 – ACTIVOS DISPONIBLES PARA LA VENTA"]
[null,"Expresado en Guaranies"]
[]
[]
[null,{"$f":"IFERROR(IF(Indice!B6=\"\",\"2XX2\",YEAR(Indice!B6)),\"2XX2\")","v":2021},{"$f":"IFERROR(YEAR(Indice!B6-365),\"2XX1\")","v":2020}]
["Propiedad, planta y equipo"]
["(Detallar bienes de uso)"]
["Total",{"$f":"B10","v":0},{"$f":"C10","v":0}]
[]
["Activos intangibles"]
["(Detallar activos intangibles)"]
["Total",{"$f":"B14","v":0},{"$f":"C14","v":0}]
[]
["Inversiones"]
["Mejoras Propiedad de Terceros",865446281,1106840918]
["Contratos con EESS ",4076903559,4276102434]
["Mantenimiento de Garrafas",5169968999,5196743816]
["Total",{"$f":"SUM(B18:B20)","v":10112318839},{"$f":"SUM(C18:C20)","v":10579687168}]
[]
["Total general",{"$f":"B11+B15+B21","v":10112318839},{"$f":"C11+C15+C21","v":10579687168}]
[]
[]
[]
[]
[]
[]
[]
[]
["Sra Luisa Isabel Schaerer de Pallares","Sra. Maria Celeste Pallares Viveros"]
["                Presidente ","Vicepresidente"]
[]
[]
[]
[]
[]
[]
[]
["Dr. Raul Fernando Vargas","C.P. Gloria Elizabeth Flecha Benitez"]
["         Sindico Titular","Contador"]

{"sheet":"Nota 11","index":15,"n_rows":30,"n_cols":6,"rows_kept":30,"cut":false,"hidden":false,"merged":[[28,2,28,5],[29,2,29,5],[28,0,28,1],[29,0,29,1],[3,0,3,5],[4,1,4,2],[19,2,19,5],[20,2,20,5],[19,0,19,1],[20,0,20,1],[5,0,5,5],[7,0,7,5],[6,0,6,5]]}
[{"$f":"Indice!C1","v":"GAS CORONA S.A.E.C.A."},null,null,null,null,"BG"]
[]
[]
["NOTA 11 – ACTIVOS INTANGIBLES"]
[null,"Expresado en Guaranies"]
["Los Activos Intangibles se registran al costo de adquisicion, mas cualquier costo directamente atribuible a la"]
["preparacion del activo para su uso. Los activos intangibles se amortizan en 5 años"]
[]
["Activos intangibles",{"$f":"IFERROR(IF(Indice!B6=\"\",\"2XX2\",YEAR(Indice!B6)),\"2XX2\")","v":2021},{"$f":"IFERROR(YEAR(Indice!B6-365),\"2XX1\")","v":2020}]
["Implementacion de Sotfware",2539816124,2139944405]
["Menos amortización acumulada",-1703005762,-1443565831]
[]
["Total general",{"$f":"SUM(B10:B12)","v":836810362},{"$f":"SUM(C10:C12)","v":696378574}]
[]
[]
[]
[]
[]
[]
["Sra Luisa Isabel Schaerer de Pallares",null,"Sra. Maria Celeste Pallares Viveros"]
["Presidente ",null,"Vicepresidente"]
[]
[]
[]
[]
[]
[]
[]
["Dr. Raul Fernando Vargas",null,"C.P. Gloria Elizabeth Flecha Benitez"]
["Sindico Titular",null,"Contador"]

{"sheet":"Nota 12","index":16,"n_rows":30,"n_cols":5,"rows_kept":30,"cut":false,"hidden":false,"merged":[[5,1,5,2],[3,0,3,3],[19,2,19,4],[20,2,20,4],[4,0,4,4]]}
[{"$f":"Indice!C1","v":"GAS CORONA S.A.E.C.A."},null,null,null,"BG"]
[]
[]
["NO APLICA"]
["NOTA 12 – GOODWILL"]
[null,"Expresado en guaranies"]
["Goodwill",{"$f":"IFERROR(IF(Indice!B6=\"\",\"2XX2\",YEAR(Indice!B6)),\"2XX2\")","v":2021},{"$f":"IFERROR(YEAR(Indice!B6-365),\"2XX1\")","v":2020}]
[null,0,0]
[null,0,0]
[]
["Total general",{"$f":"SUM(B8:B10)","v":0},{"$f":"SUM(C8:C10)","v":0}]
[]
[]
[]
[]
[]
[]
[]
[]
["Sra Luisa Isabel Schaerer de Pallares",null,"Sra. Maria Celeste Pallares Viveros"]
["                    Presidente ",null,"Vicepresidente"]
[]
[]
[]
[]
[]
[]
[]
["Dr. Raul Fernando Vargas","C.P. Gloria Elizabeth Flecha Benitez"]
["Sindico Titular","Contador"]

{"sheet":"Nota 13","index":17,"n_rows":34,"n_cols":5,"rows_kept":34,"cut":false,"hidden":false,"merged":[[3,0,3,4]]}
[{"$f":"Indice!C1","v":"GAS CORONA S.A.E.C.A."},null,"BG"]
[]
[]
["NOTA 13 – CUENTAS POR PAGAR COMERCIALES"]
["Expresado en Guaranies"]
["Las cuentas a pagar son pasivos originados por bienes o servicios que han sido recibidos y que han sido facturados o formalmente acordados con el proveedor."]
["Las cuentas a pagar son obligaciones contraídas y se reconoce como sigue:"]
[]
["Corrientes","Simbología según ISO 4217","Indicación de Moneda",{"$f":"IFERROR(IF(Indice!B6=\"\",\"2XX2\",YEAR(Indice!B6)),\"2XX2\")","v":2021},{"$f":"IFERROR(YEAR(Indice!B6-365),\"2XX1\")","v":2020}]
["Proveedores - Entidades Relacionadas","PYG",{"$f":"IFERROR(VLOOKUP(B10,'Base de Monedas'!A:B,2,0),\"\")","v":"Guaraní"},11000000,{"$f":"453000+181200","v":634200}]
["Otros proveedores del exterior","PYG",{"$f":"IFERROR(VLOOKUP(B11,'Base de Monedas'!A:B,2,0),\"\")","v":"Guaraní"},550509474,2088759361]
["Proveedores locales","PYG",{"$f":"IFERROR(VLOOKUP(B12,'Base de Monedas'!A:B,2,0),\"\")","v":"Guaraní"},2352940447,1379284786]
["Proveedores Combustibles y GLP","PYG",{"$f":"IFERROR(VLOOKUP(B13,'Base de Monedas'!A:B,2,0),\"\")","v":"Guaraní"},13305901000,9146727000]
["Proveedores con Cheques Emitidos","PYG",{"$f":"IFERROR(VLOOKUP(B14,'Base de Monedas'!A:B,2,0),\"\")","v":"Guaraní"},4092073666,6441700140]
["Documentos a Pagar","PYG",{"$f":"IFERROR(VLOOKUP(B15,'Base de Monedas'!A:B,2,0),\"\")","v":"Guaraní"},231498364,320451625]
["Acreedores Varios","PYG",{"$f":"IFERROR(VLOOKUP(B16,'Base de Monedas'!A:B,2,0),\"\")","v":"Guaraní"},{"$f":"740775807+351895992","v":1092671799},{"$f":"671009284+133634912","v":804644196}]
["Total cuentas a pagar por comerciales",null,null,{"$f":"SUM($D$10:D16)","v":21636594750},{"$f":"SUM($E$10:E16)","v":20182201308}]
[]
[]
[]
["No Corrientes","Simbología según ISO 4217","Indicación de Moneda",{"$f":"IFERROR(YEAR(Indice!B6),\"2XX2\")","v":2021},{"$f":"IFERROR(YEAR(Indice!B6-365),\"2XX1\")","v":2020}]
["Proveedores - Entidades Relacionadas",null,{"$f":"IFERROR(VLOOKUP(B22,'Base de Monedas'!A:B,2,0),\"\")","v":""}]
["Otros proveedores del exterior",null,{"$f":"IFERROR(VLOOKUP(B23,'Base de Monedas'!A:B,2,0),\"\")","v":""}]
["Proveedores locales",null,{"$f":"IFERROR(VLOOKUP(B24,'Base de Monedas'!A:B,2,0),\"\")","v":""}]
["Documentos a Pagar","PYG",{"$f":"IFERROR(VLOOKUP(B25,'Base de Monedas'!A:B,2,0),\"\")","v":"Guaraní"},516042093,{"$f":"65198994+11184560","v":76383554}]
["Total cuentas a pagar por comerciales",null,null,{"$f":"SUM($D$22:D25)","v":516042093},170082944]
[]
[]
[]
[]
[]
[]
["Sra Luisa Isabel Schaerer de Pallares","Sra. Maria Celeste Pallares Viveros","Dr. Raul Fernando Vargas","C.P. Gloria Elizabeth Flecha Benitez"]
["                   Presidente ","Vicepresidente","Sindico Titular","Contador"]

{"sheet":"Nota 14","index":18,"n_rows":56,"n_cols":12,"rows_kept":56,"cut":false,"hidden":false,"merged":[[30,1,30,5],[55,3,55,4],[54,10,54,12],[55,10,55,12],[54,8,54,9],[55,8,55,9],[54,3,54,4]]}
[{"$f":"Indice!C1","v":"GAS CORONA S.A.E.C.A."},null,null,null,"BG",null,null,null,null,null,null,"BG"]
[]
[]
["NOTA 14 –  PRESTAMOS A CORTO Y LARGO PLAZO"]
[]
["Exponemos detalle de las colocacion de bonos del Programa Emision Global de Bonos G3 y los intereses que corresponde por la emision de los bonos."]
[]
[]
["Corrientes"]
[null,null,null,{"$f":"IFERROR(IF(Indice!B6=\"\",\"2XX2\",YEAR(Indice!B6)),\"2XX2\")","v":2021},null,null,null,null,null,{"$f":"IFERROR(YEAR(Indice!B6-365),\"2XX1\")","v":2020}]
["Préstamos de Entidades Locales","Vencimiento","Símbolo de Moneda","Moneda","Importe Expresado \nen Guaranies","Tipo de Garantía",null,"Vencimiento","Símbolo de Moneda","Moneda","Importe Expresado \nen Guaranies","Tipo de Garantía"]
["Banco Regional S.A.",null,"PYG",{"$f":"IFERROR(VLOOKUP(C12,'Base de Monedas'!A:B,2,0),\"\")","v":"Guaraní"},0,null,null,null,null,{"$f":"IFERROR(VLOOKUP(I12,'Base de Monedas'!A:B,2,0),\"\")","v":""},0]
[null,null,null,{"$f":"IFERROR(VLOOKUP(C13,'Base de Monedas'!A:B,2,0),\"\")","v":""},null,null,null,null,null,{"$f":"IFERROR(VLOOKUP(I13,'Base de Monedas'!A:B,2,0),\"\")","v":""}]
["Deudas bursátiles",null,null,{"$f":"IFERROR(VLOOKUP(C14,'Base de Monedas'!A:B,2,0),\"\")","v":""},null,null,null,null,null,{"$f":"IFERROR(VLOOKUP(I14,'Base de Monedas'!A:B,2,0),\"\")","v":""}]
["Programa Emision Global de Bonos G2",null,"PYG",{"$f":"IFERROR(VLOOKUP(C15,'Base de Monedas'!A:B,2,0),\"\")","v":"Guaraní"},0,null,null,"2020-11-18","PYG",{"$f":"IFERROR(VLOOKUP(I15,'Base de Monedas'!A:B,2,0),\"\")","v":"Guaraní"},1000000000]
["Programa Emision Global de Bonos G3",null,"PYG",{"$f":"IFERROR(VLOOKUP(C16,'Base de Monedas'!A:B,2,0),\"\")","v":"Guaraní"},0,null,null,"2021-07-15","PYG",{"$f":"IFERROR(VLOOKUP(I16,'Base de Monedas'!A:B,2,0),\"\")","v":"Guaraní"},1000000000]
["Programa Emision Global de Bonos G3","2022-01-13","PYG",{"$f":"IFERROR(VLOOKUP(C17,'Base de Monedas'!A:B,2,0),\"\")","v":"Guaraní"},1000000000]
["Programa Emision Global de Bonos G3","2022-07-14","PYG",{"$f":"IFERROR(VLOOKUP(C18,'Base de Monedas'!A:B,2,0),\"\")","v":"Guaraní"},1000000000]
["Préstamos de Entidades en el Exterior",null,null,{"$f":"IFERROR(VLOOKUP(C19,'Base de Monedas'!A:B,2,0),\"\")","v":""},null,null,null,null,null,{"$f":"IFERROR(VLOOKUP(I19,'Base de Monedas'!A:B,2,0),\"\")","v":""}]
["Nombre de la entidad financiera",null,null,{"$f":"IFERROR(VLOOKUP(C20,'Base de Monedas'!A:B,2,0),\"\")","v":""},null,null,null,null,null,{"$f":"IFERROR(VLOOKUP(I20,'Base de Monedas'!A:B,2,0),\"\")","v":""}]
["Intereses préstamos entidades financieras a pagar",null,null,{"$f":"IFERROR(VLOOKUP(C21,'Base de Monedas'!A:B,2,0),\"\")","v":""},null,null,null,null,null,{"$f":"IFERROR(VLOOKUP(I21,'Base de Monedas'!A:B,2,0),\"\")","v":""}]
["Intereses a pagar",null,"PYG",{"$f":"IFERROR(VLOOKUP(C22,'Base de Monedas'!A:B,2,0),\"\")","v":"Guaraní"},0]
["(-) Intereses a Devengar",null,"PYG",{"$f":"IFERROR(VLOOKUP(C23,'Base de Monedas'!A:B,2,0),\"\")","v":"Guaraní"},0]
["Intereses deudas Bursátiles a Pagar",null,null,{"$f":"IFERROR(VLOOKUP(C24,'Base de Monedas'!A:B,2,0),\"\")","v":""},0,null,null,null,null,{"$f":"IFERROR(VLOOKUP(I24,'Base de Monedas'!A:B,2,0),\"\")","v":""}]
["Intereses a pagar PYG","2022-07-14","PYG",{"$f":"IFERROR(VLOOKUP(C25,'Base de Monedas'!A:B,2,0),\"\")","v":"Guaraní"},1418602740,null,null,"2021-07-15","PYG",{"$f":"IFERROR(VLOOKUP(I25,'Base de Monedas'!A:B,2,0),\"\")","v":"Guaraní"},1565712336]
["(-) Intereses a Devengar","2022-07-14","PYG",{"$f":"IFERROR(VLOOKUP(C26,'Base de Monedas'!A:B,2,0),\"\")","v":"Guaraní"},-1385219179,null,null,"2021-09-30","PYG",{"$f":"IFERROR(VLOOKUP(I26,'Base de Monedas'!A:B,2,0),\"\")","v":"Guaraní"},-1235178077]
["Intereses a pagar USD",null,null,null,0,null,null,null,"PYG",{"$f":"IFERROR(VLOOKUP(I27,'Base de Monedas'!A:B,2,0),\"\")","v":"Guaraní"},0]
["(-) Intereses a Devengar",null,null,{"$f":"IFERROR(VLOOKUP(C28,'Base de Monedas'!A:B,2,0),\"\")","v":""},0,null,null,null,"PYG",{"$f":"IFERROR(VLOOKUP(I28,'Base de Monedas'!A:B,2,0),\"\")","v":"Guaraní"},0]
["Total",null,null,{"$f":"IFERROR(VLOOKUP(C29,'Base de Monedas'!A:B,2,0),\"\")","v":""},{"$f":"SUM($E$12:E28)","v":2033383561},null,null,null,null,null,{"$f":"SUM($K$12:K28)","v":2330534259}]
["No Corrientes"]
[null,{"$f":"IFERROR(YEAR(Indice!B6),\"2XX2\")","v":2021},null,null,null,null,null,null,null,{"$f":"IFERROR(YEAR(Indice!B6-365),\"2XX1\")","v":2020}]
["Préstamos de Entidades Locales","Vencimiento","Símbolo de Moneda","Moneda","Importe Expresado \nen Guaranies","Tipo de garantía",null,"Vencimiento","Símbolo de Moneda","Moneda","Importe Expresado \nen Guaranies","Tipo de Garantía"]
["Banco Regional S.A.",null,null,{"$f":"IFERROR(VLOOKUP(C33,'Base de Monedas'!A:B,2,0),\"\")","v":""},0,null,null,null,"PYG",{"$f":"IFERROR(VLOOKUP(I33,'Base de Monedas'!A:B,2,0),\"\")","v":"Guaraní"},0]
["Deudas bursátiles",null,null,{"$f":"IFERROR(VLOOKUP(C34,'Base de Monedas'!A:B,2,0),\"\")","v":""},null,null,null,null,null,{"$f":"IFERROR(VLOOKUP(I34,'Base de Monedas'!A:B,2,0),\"\")","v":""},0]
["Programa Emision Global de Bonos G3","2023-01-12","PYG",{"$f":"IFERROR(VLOOKUP(C35,'Base de Monedas'!A:B,2,0),\"\")","v":"Guaraní"},2000000000,null,null,"2022-01-13","PYG",{"$f":"IFERROR(VLOOKUP(I35,'Base de Monedas'!A:B,2,0),\"\")","v":"Guaraní"},1000000000]
["Programa Emision Global de Bonos G3","2023-07-13","PYG",{"$f":"IFERROR(VLOOKUP(C36,'Base de Monedas'!A:B,2,0),\"\")","v":"Guaraní"},2000000000,null,null,"2022-07-14","PYG",{"$f":"IFERROR(VLOOKUP(I36,'Base de Monedas'!A:B,2,0),\"\")","v":"Guaraní"},1000000000]
["Programa Emision Global de Bonos G3","2024-01-11","PYG",{"$f":"IFERROR(VLOOKUP(C37,'Base de Monedas'!A:B,2,0),\"\")","v":"Guaraní"},2000000000,null,null,"2023-01-12","PYG",{"$f":"IFERROR(VLOOKUP(I37,'Base de Monedas'!A:B,2,0),\"\")","v":"Guaraní"},2000000000]
["Programa Emision Global de Bonos G3","2024-07-11","PYG",{"$f":"IFERROR(VLOOKUP(C38,'Base de Monedas'!A:B,2,0),\"\")","v":"Guaraní"},2000000000,null,null,"2023-07-13","PYG",{"$f":"IFERROR(VLOOKUP(I38,'Base de Monedas'!A:B,2,0),\"\")","v":"Guaraní"},2000000000]
["Programa Emision Global de Bonos G3","2025-01-09","PYG",{"$f":"IFERROR(VLOOKUP(C39,'Base de Monedas'!A:B,2,0),\"\")","v":"Guaraní"},2000000000,null,null,"2024-01-11","PYG",{"$f":"IFERROR(VLOOKUP(I39,'Base de Monedas'!A:B,2,0),\"\")","v":"Guaraní"},2000000000]
["Programa Emision Global de Bonos G3","2025-07-10","PYG",{"$f":"IFERROR(VLOOKUP(C40,'Base de Monedas'!A:B,2,0),\"\")","v":"Guaraní"},2000000000,null,null,"2024-07-11","PYG",{"$f":"IFERROR(VLOOKUP(I40,'Base de Monedas'!A:B,2,0),\"\")","v":"Guaraní"},2000000000]
["Programa Emision Global de Bonos G3",null,null,null,0,null,null,"2025-01-09","PYG",{"$f":"IFERROR(VLOOKUP(I41,'Base de Monedas'!A:B,2,0),\"\")","v":"Guaraní"},2000000000]
["Programa Emision Global de Bonos G3",null,null,null,0,null,null,"2025-07-10","PYG",{"$f":"IFERROR(VLOOKUP(I42,'Base de Monedas'!A:B,2,0),\"\")","v":"Guaraní"},2000000000]
["Préstamos de Entidades en el Exterior",null,null,{"$f":"IFERROR(VLOOKUP(C43,'Base de Monedas'!A:B,2,0),\"\")","v":""},null,null,null,null,null,{"$f":"IFERROR(VLOOKUP(I43,'Base de Monedas'!A:B,2,0),\"\")","v":""},0]
["Intereses préstamos entidades financieras a pagar",null,null,{"$f":"IFERROR(VLOOKUP(C44,'Base de Monedas'!A:B,2,0),\"\")","v":""},null,null,null,null,null,{"$f":"IFERROR(VLOOKUP(I44,'Base de Monedas'!A:B,2,0),\"\")","v":""}]
["Intereses a pagar","2025-07-10","PYG",{"$f":"IFERROR(VLOOKUP(C45,'Base de Monedas'!A:B,2,0),\"\")","v":"Guaraní"},2338575342,null,null,"2025-07-10","PYG",{"$f":"IFERROR(VLOOKUP(I45,'Base de Monedas'!A:B,2,0),\"\")","v":"Guaraní"},3757178082]
["(-) Intereses a Devengar","2025-07-10","PYG",{"$f":"IFERROR(VLOOKUP(C46,'Base de Monedas'!A:B,2,0),\"\")","v":"Guaraní"},-2062904109,null,null,"2025-07-10","PYG",{"$f":"IFERROR(VLOOKUP(I46,'Base de Monedas'!A:B,2,0),\"\")","v":"Guaraní"},-3757178082]
["Intereses deudas bursátiles a pagar",null,null,{"$f":"IFERROR(VLOOKUP(C47,'Base de Monedas'!A:B,2,0),\"\")","v":""},null,null,null,null,null,{"$f":"IFERROR(VLOOKUP(I47,'Base de Monedas'!A:B,2,0),\"\")","v":""}]
["Intereses a pagar",null,null,{"$f":"IFERROR(VLOOKUP(C48,'Base de Monedas'!A:B,2,0),\"\")","v":""},null,null,null,null,"PYG",{"$f":"IFERROR(VLOOKUP(I48,'Base de Monedas'!A:B,2,0),\"\")","v":"Guaraní"},0]
["(-) Intereses a Devengar",null,null,{"$f":"IFERROR(VLOOKUP(C49,'Base de Monedas'!A:B,2,0),\"\")","v":""},null,null,null,null,"PYG",{"$f":"IFERROR(VLOOKUP(I49,'Base de Monedas'!A:B,2,0),\"\")","v":"Guaraní"},0]
["Total",null,null,{"$f":"IFERROR(VLOOKUP(C50,'Base de Monedas'!A:B,2,0),\"\")","v":""},{"$f":"SUM($E$33:E49)","v":12275671233},null,null,null,null,{"$f":"IFERROR(VLOOKUP(I50,'Base de Monedas'!A:B,2,0),\"\")","v":""},{"$f":"SUM($K$33:K49)","v":14000000000}]
[]
[]
[null,null,null,null,null,null,null,null,null,{"$f":"IFERROR(VLOOKUP(I53,'Base de Monedas'!H:I,2,0),\"\")","v":""}]
[]
["Sra Luisa Isabel Schaerer de Pallares",null,null,"Sra. Maria Celeste Pallares Viveros",null,null,null,null,"Dr. Raul Fernando Vargas",null,"C.P. Gloria Elizabeth Flecha Benitez"]
["                   Presidente ",null,null,"Vicepresidente",null,null,null,null,"Sindico Titular",null,"Contador"]

{"sheet":"Nota 15","index":19,"n_rows":31,"n_cols":4,"rows_kept":31,"cut":false,"hidden":false,"merged":[[6,1,6,2],[3,0,3,3],[4,0,4,2]]}
[{"$f":"Indice!C1","v":"GAS CORONA S.A.E.C.A."},null,null,"BG"]
[]
[]
["NO APLICA"]
["NOTA 15 – PORCION CORRIENTE DE LA DEUDA A LARGO PLAZO"]
[]
[null,"Expresado en guaranies"]
["Porción corriente de la deuda a largo plazo",{"$f":"IFERROR(IF(Indice!B6=\"\",\"2XX2\",YEAR(Indice!B6)),\"2XX2\")","v":2021},{"$f":"IFERROR(YEAR(Indice!B6-365),\"2XX1\")","v":2020}]
["Cuentas por pagar comerciales"]
["Préstamos bancarios"]
["Bonos bursátiles"]
["Intereses bancarios a pagar"]
["Intereses bursatiles a pagar"]
["(nuevas cuentas a incluir)"]
["Total general",{"$f":"SUM($B$9:B14)","v":0},{"$f":"SUM($C$9:C14)","v":0}]
[]
[]
[]
[]
[]
["Sra Luisa Isabel Schaerer de Pallares","Sra. Maria Celeste Pallares Viveros"]
["               Presidente ","Vicepresidente"]
[]
[]
[]
[]
[]
[]
[]
["Dr. Raul Fernando Vargas","C.P. Gloria Elizabeth Flecha Benitez"]
["       Sindico Titular","Contador"]

{"sheet":"Nota 16","index":20,"n_rows":37,"n_cols":6,"rows_kept":37,"cut":false,"hidden":false,"merged":[[11,1,11,2],[3,0,3,2]]}
[{"$f":"Indice!C1","v":"GAS CORONA S.A.E.C.A."},null,null,null,null,"BG"]
[]
[]
["NOTA 16 – REMUNERACIONES Y CARGAS SOCIALES A PAGAR"]
[]
["Se registra como provisiones, el importe calculado sobre el salario de los colaboradores, para afrontar el"]
["pago de aguinaldo y ademas  provisión para el pago de vacaciones cuyo registro y ajuste es mensual"]
["Las Cargas Sociales: El Aporte Obrero Patronal consiste en 25.5% del Salario percibido por el Trabajador "]
["y declarado por el Empleador. El pago del Aporte Obrero Patronal se paga en conjunto por el Trabajador y "]
["el Empleador conforme a la siguiente división: Trabajador: 9% Empleador: 16.5% (14% al IPS mas 2.5% "]
[" asignado al SNPP y SENEPA)Es una obligacion del empleador y un derecho del trabajador y de acuerdo con la ley."]
[null,"Expresado en guaranies"]
["Remuneraciones y cargas sociales a pagar",{"$f":"IFERROR(IF(Indice!B6=\"\",\"2XX2\",YEAR(Indice!B6)),\"2XX2\")","v":2021},{"$f":"IFERROR(YEAR(Indice!B6-365),\"2XX1\")","v":2020}]
["Sueldo y otras remuneraciones a pagar",8594059,4710770]
["Aportes y retenciones a pagar",230685337,214509067]
["Remuneraciones al personal superior a pagar",0,0]
["Aguinaldos a Pagar",629152955,631080254]
["Vacaciones a Pagar",599854553,570747034]
["Total",{"$f":"SUM($B$14:B18)","v":1468286904},{"$f":"SUM($C$14:C18)","v":1421047125}]
[]
[]
[]
[]
[]
[]
[]
["Sra Luisa Isabel Schaerer de Pallares","Sra. Maria Celeste Pallares Viveros"]
["               Presidente ","                    Vicepresidente"]
[]
[]
[]
[]
[]
[]
[]
["Dr. Raul Fernando Vargas","C.P. Gloria Elizabeth Flecha Benitez"]
["       Sindico Titular","                 Contador"]

{"sheet":"Nota 17","index":21,"n_rows":37,"n_cols":7,"rows_kept":37,"cut":false,"hidden":false,"merged":[[11,1,11,2],[4,0,4,3]]}
[{"$f":"Indice!C1","v":"GAS CORONA S.A.E.C.A."},null,null,null,null,null,"BG"]
[]
[]
[]
["NOTA 17 –  IMPUESTOS A PAGAR"]
[]
["El sistema tributario paraguayo, se apoya fuertemente en estos impuestos básicos: "]
["El Impuesto al Valor Agregado (IVA), el Impuesto a la Renta de la Empresas (IRE), el Impuesto Selectivo al Consumo (ISC) "]
["donde este ultimo se abona en el momento de los despachos de la materia prima (GLP) que utiliza  Gas Corona."]
["En el año 2009, Gas Corona fue designado por la Subsecretaria de Estado de Tributacion como Agente Retentor del IVA"]
["por lo que se expone la cuenta Retenciones IVA a Pagar."]
[null,"En miles de guaranies"]
["Impuestos a pagar",{"$f":"IFERROR(IF(Indice!B6=\"\",\"2XX2\",YEAR(Indice!B6)),\"2XX2\")","v":2021},{"$f":"IFERROR(YEAR(Indice!B6-365),\"2XX1\")","v":2020}]
["Impuesto al Valor Agregado  a pagar",2449879,1519137]
["Retencion Renta a Pagar",0,15171026]
["Retencion Proveedores IVA a Pagar",50766876,78074852]
["Total",{"$f":"SUM($B$14:B16)","v":53216755},{"$f":"SUM($C$14:C16)","v":94765015}]
[]
[]
[]
[]
[]
[]
[]
[]
[]
["Sra Luisa Isabel Schaerer de Pallares","Sra. Maria Celeste Pallares Viveros"]
["               Presidente ","                    Vicepresidente"]
[]
[]
[]
[]
[]
[]
[]
["Dr. Raul Fernando Vargas","C.P. Gloria Elizabeth Flecha Benitez"]
["       Sindico Titular","                        Contador"]

{"sheet":"Nota 18","index":22,"n_rows":38,"n_cols":4,"rows_kept":38,"cut":false,"hidden":false,"merged":[[36,2,36,3],[37,2,37,3],[3,0,3,3],[8,0,9,0],[7,1,7,2],[27,2,27,3],[28,2,28,3]]}
[{"$f":"Indice!C1","v":"GAS CORONA S.A.E.C.A."},null,null,"BG"]
[]
[]
["NOTA 18 -  PROVISIONES"]
[]
["Las provisiones son partidas del pasivo de Balance destinadas a recoger gastos que se van a producir"]
["en el futuro y que son ya conocidos."]
[null,"Expresado en  guaranies"]
["Provisiones",{"$f":"IFERROR(IF(Indice!B6=\"\",\"2XX2\",YEAR(Indice!B6)),\"2XX2\")","v":2021},{"$f":"IFERROR(YEAR(Indice!B6-365),\"2XX1\")","v":2020}]
[]
["Alquileres a Pagar",0,0]
["Servicios Basicos a Pagar",0,0]
["Honorarios Profesionales a Pagar",0,0]
["Dividendos a Pagar",6926664835,5903634576]
["Provisiones Varias",1250423245,37565229]
["Provisiones Caja Chica",29147209,32491930]
["Provision Despachos",76653100,88376697]
["Total",{"$f":"SUM($B$11:B17)","v":8282888389},{"$f":"SUM($C$11:C17)","v":6062068432}]
[]
[]
[]
[]
[]
[]
[]
[]
[]
["Sra Luisa Isabel Schaerer de Pallares",null,"Sra. Maria Celeste Pallares Viveros"]
["               Presidente ",null,"Vicepresidente"]
[]
[]
[]
[]
[]
[]
[]
["Dr. Raul Fernando Vargas",null,"C.P. Gloria Elizabeth Flecha Benitez"]
["       Sindico Titular",null,"Contador"]

{"sheet":"Nota 19","index":23,"n_rows":24,"n_cols":7,"rows_kept":24,"cut":false,"hidden":false,"merged":[[2,0,2,6],[3,0,3,1],[22,5,22,6],[23,5,23,6],[22,3,22,4],[23,3,23,4]]}
[{"$f":"Indice!C1","v":"GAS CORONA S.A.E.C.A."},null,null,"BG"]
[]
["NOTA 19 – OTROS PASIVOS CORRIENTES y NO CORRIENTES"]
["Expresado en guaranies"]
["La previsión consiste en predecir montos o cifras en los estados financieros que pueden afectar el patrimonio de la Empresa"]
["Por lo general, estas previsiones se basan en estadísticas contables de periodos anteriores de la empresa."]
[]
[]
["Corrientes",{"$f":"IFERROR(IF(Indice!B6=\"\",\"2XX2\",YEAR(Indice!B6)),\"2XX2\")","v":2021},{"$f":"IFERROR(YEAR(Indice!B6-365),\"2XX1\")","v":2020},null,"No Corrientes",{"$f":"IFERROR(IF(Indice!B6=\"\",\"2XX2\",YEAR(Indice!B6)),\"2XX2\")","v":2021},{"$f":"IFERROR(YEAR(Indice!B6-365),\"2XX1\")","v":2020}]
["Retencion de IVA a pagar",0,null,null,"Retencion de IVA a pagar"]
["Retencion Impuesto a la renta a Pagar",0,0,null,"Retencion Impuesto a la renta a Pagar"]
["Impuestos diferidos",0,0,null,"Impuestos diferidos"]
["Otros ingresos diferidos (detallar cuenta)",0,0,null,"Otros ingresos diferidos"]
["Otros Pasivos con Entidades relacionadas ",0,0,null,"Otros Pasivos con Entidades relacionadas "]
["Previsiones para contingencias/Indemnizaciones y despidos",1713791642,1716629332,null,"Previsiones para contingencias/Indemnizaciones y despidos"]
["Acreedores Varios",0,0,null,"(nuevas cuentas a incluir)"]
["Total ",{"$f":"SUM(B11:B16)","v":1713791642},{"$f":"SUM(C11:C16)","v":1716629332},null,"Total ",{"$f":"SUM(F11:F16)","v":0},{"$f":"SUM(G11:G16)","v":0}]
[]
[]
[]
[]
[]
["Sra Luisa Isabel Schaerer de Pallares","Sra. Maria Celeste Pallares Viveros",null,"Dr. Raul Fernando Vargas",null,"C.P. Gloria Elizabeth Flecha Benitez"]
["                   Presidente ","               Vicepresidente",null,"Sindico Titular",null,"Contador"]

{"sheet":"Nota 20","index":24,"n_rows":32,"n_cols":4,"rows_kept":32,"cut":false,"hidden":false,"merged":[[4,0,4,4]]}
[]
[{"$f":"Indice!C1","v":"GAS CORONA S.A.E.C.A."},null,null,"BG"]
[]
[]
["NOTA 20 – CAPITAL INTEGRADO"]
[]
["El capital integrado es el capital efectivamente aportado en dinero o en bienes  por los accionistas. "]
[]
["Fecha",{"$f":"IFERROR(IF(Indice!B6=\"\",\"2XX2\",YEAR(Indice!B6)),\"2XX2\")","v":2021},{"$f":"IFERROR(YEAR(Indice!B6-365),\"2XX1\")","v":2020}]
["Monto Capital Social",52000000000,50000000000]
["Monto Capital Integrado",50000000000,49200000000]
["Cantidad de Acciones",5000,4920]
["Valor Nominal de Acciones",10000000,10000000]
["Total",{"$f":"B12*B13","v":50000000000},{"$f":"+C11","v":49200000000}]
[]
[]
[]
[]
[]
[]
[]
["Sra Luisa Isabel Schaerer de Pallares","Sra. Maria Celeste Pallares Viveros"]
["               Presidente ","Vicepresidente"]
[]
[]
[]
[]
[]
[]
[]
["Dr. Raul Fernando Vargas","C.P. Gloria Elizabeth Flecha Benitez"]
["       Sindico Titular","Contador"]

{"sheet":" Nota 21","index":25,"n_rows":46,"n_cols":6,"rows_kept":46,"cut":false,"hidden":false,"merged":[[45,3,45,7],[3,0,3,7],[8,1,8,2],[35,3,35,7],[36,3,36,7],[44,3,44,7]]}
[{"$f":"Indice!C1","v":"GAS CORONA S.A.E.C.A."},null,null,null,null,"BG"]
[]
[]
["NOTA 21 – RESERVAS"]
[]
["Esta reserva es la denominada Reserva Legal, establecida en el artículo 91 de la Ley 1.034/83 Del Comerciante, "]
["que  obliga  a  no  distribuir el 5% de  las  utilidades  netas  del  ejercicio hasta alcanzar el veinte por ciento del "]
["capital suscripto."]
[null,"Expresado en  guaranies"]
[null,{"$f":"IFERROR(IF(Indice!B6=\"\",\"2XX2\",YEAR(Indice!B6)),\"2XX2\")","v":2021},{"$f":"IFERROR(YEAR(Indice!B6-365),\"2XX1\")","v":2020}]
["a  Reserva de revalúo",0,0]
[]
[]
[]
["b Reserva legal",8151731798,6931012994]
[]
[]
[]
["c Reservas estatutarias"]
[]
[]
[]
["d Reservas facultativas",{"$f":"+SUM($B$24:B29)","v":0},{"$f":"+SUM($C$24:C29)","v":0}]
["d.1. (nuevas cuentas a incluir)"]
["d.2. (nuevas cuentas a incluir)"]
[]
[]
[]
[]
[]
[]
[]
[]
[]
[]
["Sra Luisa Isabel Schaerer de Pallares",null,null,"Sra. Maria Celeste Pallares Viveros"]
["               Presidente ",null,null,"Vicepresidente"]
[]
[]
[]
[]
[]
[]
[]
["Dr. Raul Fernando Vargas",null,null,"C.P. Gloria Elizabeth Flecha Benitez"]
["       Sindico Titular",null,null,"Contador"]

{"sheet":"Nota 22","index":26,"n_rows":26,"n_cols":6,"rows_kept":26,"cut":false,"hidden":false,"merged":[[25,3,25,7],[3,0,3,6],[5,1,5,2],[2,0,2,3],[15,3,15,7],[16,3,16,7],[24,3,24,7]]}
[{"$f":"Indice!C1","v":"GAS CORONA S.A.E.C.A."},null,null,null,null,"BG"]
[]
["NO APLICA "]
["NOTA 21 –  DIFERENCIA TRANSITORIA POR CONVERSION"]
[]
[null,"Expresado en  guaranies"]
[null,{"$f":"IFERROR(IF(Indice!B6=\"\",\"2XX2\",YEAR(Indice!B6)),\"2XX2\")","v":2021},{"$f":"+IFERROR(YEAR(Indice!B6-365),\"2XX1\")","v":2020}]
["Diferencia transitoria por conversión"]
[]
[]
[]
[]
[]
[]
[]
["Sra Luisa Isabel Schaerer de Pallares",null,null,"Sra. Maria Celeste Pallares Viveros"]
["               Presidente ",null,null,"Vicepresidente"]
[]
[]
[]
[]
[]
[]
[]
["Dr. Raul Fernando Vargas",null,null,"C.P. Gloria Elizabeth Flecha Benitez"]
["       Sindico Titular",null,null,"Contador"]

{"sheet":"Nota 23","index":27,"n_rows":32,"n_cols":6,"rows_kept":32,"cut":false,"hidden":false,"merged":[[6,0,6,7],[10,1,10,2]]}
[]
[]
[]
[{"$f":"Indice!C1","v":"GAS CORONA S.A.E.C.A."},null,null,null,null,"BG"]
[]
[]
["NOTA 23 –  RESULTADOS ACUMULADOS"]
[]
["El Resultado Contable es el beneficio obtenido en determinado periodo, como consecuencia de sus "]
["operaciones de naturaleza."]
[null,"Expresado en  guaranies"]
[null,{"$f":"IFERROR(IF(Indice!B6=\"\",\"2XX2\",YEAR(Indice!B6)),\"2XX2\")","v":2021},{"$f":"+IFERROR(YEAR(Indice!B6-365),\"2XX1\")","v":2020}]
["Resultado de ejercicios anteriores",0,0]
["Resultado del ejercicio actual",5594340806,19997379884]
["Totales",{"$f":"SUM($B$13:B14)","v":5594340806},{"$f":"SUM($C$13:C14)","v":19997379884}]
[]
[]
[]
[]
[]
[]
["Sra Luisa Isabel Schaerer de Pallares",null,"Sra. Maria Celeste Pallares Viveros"]
["               Presidente ",null,null,"Vicepresidente"]
[]
[]
[]
[]
[]
[]
[]
["Dr. Raul Fernando Vargas",null,"C.P. Gloria Elizabeth Flecha Benitez"]
["       Sindico Titular",null,"Contador"]

{"sheet":"Nota 24","index":28,"n_rows":26,"n_cols":6,"rows_kept":26,"cut":false,"hidden":false,"merged":[[5,1,5,2],[2,0,2,3],[3,0,3,4]]}
[{"$f":"Indice!C1","v":"GAS CORONA S.A.E.C.A."},null,null,null,null,"BG"]
[]
["NO APLICA "]
["NOTA 24 –  INTERES MINORITARIO"]
[]
[null,"Expresado en  guaranies"]
[null,{"$f":"IFERROR(IF(Indice!B6=\"\",\"2XX2\",YEAR(Indice!B6)),\"2XX2\")","v":2021},{"$f":"+IFERROR(YEAR(Indice!B6-365),\"2XX1\")","v":2020}]
["Interes Minoritario"]
[]
[]
[]
[]
[]
[]
[]
["Sra Luisa Isabel Schaerer de Pallares",null,"Sra. Maria Celeste Pallares Viveros"]
["               Presidente ",null,"Vicepresidente"]
[]
[]
[]
[]
[]
[]
[]
["Dr. Raul Fernando Vargas",null,"C.P. Gloria Elizabeth Flecha Benitez"]
["       Sindico Titular",null,"Contador"]

{"sheet":"Nota 25","index":29,"n_rows":44,"n_cols":5,"rows_kept":44,"cut":false,"hidden":false,"merged":[[43,2,43,4],[6,0,6,5],[8,1,8,2],[33,2,33,4],[34,2,34,4],[42,2,42,4]]}
[{"$f":"Indice!C1","v":"GAS CORONA S.A.E.C.A."},null,null,null,"ER"]
[]
[]
[]
["NOTA 25 –  VENTAS"]
[]
["Las ventas Contado y Credito son cuentas de naturaleza acreedora que registra los ingresos operacionales de la Sociedad."]
[]
[null,"Expresado en guaranies"]
[null,{"$f":"IFERROR(IF(Indice!B6=\"\",\"2XX2\",YEAR(Indice!B6)),\"2XX2\")","v":2021},{"$f":"+IFERROR(YEAR(Indice!B6-365),\"2XX1\")","v":2020}]
["Ventas"]
["Ventas linea de Gas Licuadot de Petroleo"]
["Local"]
["Contado",39718788770,37920701382]
["Crédito",21982553194,22429025364]
["Exterior"]
["Contado"]
["Crédito"]
["Ventas linea de Combustibles y Derivados"]
["Local"]
["Contado",4178431928,5262882172]
["Crédito",139792612333,123389060540]
["Exterior"]
["Contado"]
["Crédito"]
["(nuevas lineas de negocio a incluir)"]
["Total",{"$f":"SUM($B$12:B25)","v":205672386225},{"$f":"SUM($C$12:C25)","v":189001669458}]
[]
[]
[]
[]
[]
[]
["Sra Luisa Isabel Schaerer de Pallares",null,"Sra. Maria Celeste Pallares Viveros"]
["               Presidente ",null,"Vicepresidente"]
[]
[]
[]
[]
[]
[]
[]
["Dr. Raul Fernando Vargas",null,"C.P. Gloria Elizabeth Flecha Benitez"]
["       Sindico Titular",null,"Contador"]

{"sheet":"Nota 26","index":30,"n_rows":39,"n_cols":5,"rows_kept":39,"cut":false,"hidden":false,"merged":[[38,2,38,4],[4,0,4,5],[8,1,8,2],[29,2,29,4]]}
[{"$f":"Indice!C1","v":"GAS CORONA S.A.E.C.A."},null,null,null,"ER"]
[]
[]
[]
["NOTA 26 - COSTO DE VENTAS"]
[]
["El costo de ventas; es el costo de adquisición de los artículos que vendieron,  Los costos se valúan bajo el método"]
["del Promedio Ponderado."]
[null,"Expresado en  guaraníes"]
["Costo de ventas",{"$f":"IFERROR(IF(Indice!B6=\"\",\"2XX2\",YEAR(Indice!B6)),\"2XX2\")","v":2021},{"$f":"+IFERROR(YEAR(Indice!B6-365),\"2XX1\")","v":2020}]
["GAS LICUADO DE PETROLEO"]
["Existencia inicial del inventario",5681338324,3586346681]
["+ Compra de bienes y servicios",36102614383,23055390985]
["+ Costo de producción",0,0]
["- Existencia final de inventario",-10793978688,-4294724960]
["COMBUSTIBLES Y DERIVADOS "]
["Existencia inicial del inventario",723607621,808577670]
["+ Compra de bienes y servicios",135571587266,113020703388]
["+ Costo de producción"]
["- Existencia final de inventario",-746017652,-738869054]
["(nuevas lineas de negocio a incluir)"]
["Total costo de ventas",{"$f":"-SUM($B$11:B21)","v":-166539151254},{"$f":"-SUM($C$11:C21)","v":-135437424710}]
[]
[]
[]
[]
[]
[]
["Sra Luisa Isabel Schaerer de Pallares",null,"Sra. Maria Celeste Pallares Viveros"]
["               Presidente ",null,"Vicepresidente"]
[]
[]
[]
[]
[]
[]
[]
["Dr. Raul Fernando Vargas",null,"C.P. Gloria Elizabeth Flecha Benitez"]
["       Sindico Titular",null,"Contador"]

{"sheet":"Nota 27","index":31,"n_rows":39,"n_cols":7,"rows_kept":39,"cut":false,"hidden":false,"merged":[[37,5,37,6],[38,5,38,6],[37,3,37,4],[38,3,38,4],[37,1,37,2],[38,1,38,2],[3,0,3,6],[4,0,4,6],[6,0,7,0],[6,1,6,3],[6,4,6,6]]}
[{"$f":"Indice!C1","v":"GAS CORONA S.A.E.C.A."},null,null,null,null,null,"ER"]
[]
[]
["NOTA 27 - GASTOS"]
["Expresado en Guaranies"]
["El rubro está compuesto de la siguiente forma: "]
[null,{"$f":"IFERROR(IF(Indice!B6=\"\",\"2XX2\",YEAR(Indice!B6)),\"2XX2\")","v":2021},null,null,{"$f":"+IFERROR(YEAR(Indice!B6-365),\"2XX1\")","v":2020}]
[null,"Gastos de Ventas","Gastos Administrativos","Total","Gastos de Ventas","Gastos Administrativos","Total"]
["Movilidad y viáticos",{"$f":"375136356+14950675+1112398846+376858+325570208+69368186+14581816+876398","v":1913259343},{"$f":"63484355+6450628+4146893","v":74081876},{"$f":"+C9+B9","v":1987341219},{"$f":"(1114010336-F9)+472236+316539284","v":1383772809},{"$f":"41382633+5866414","v":47249047},{"$f":"+F9+E9","v":1431021856}]
["Gastos de alquiler",268223687,0,{"$f":"+C10+B10","v":268223687},308639984,null,{"$f":"+F10+E10","v":308639984}]
["Computación y redes",0,9727273,9727273,null,16310546,16310546]
["Gastos por servicios basicos",{"$f":"546203699-C12","v":205700128},340503571,546203699,{"$f":"575458124-F12","v":218683291},356774833,575458124]
["Honorarios profesionales y asesoramiento",0,1660337243,1660337243,null,1339157776,1339157776]
["Impuestos y tasas",46717836,2276723499,2323441335,55181619,2180287744,2235469363]
["Gastos de reparación y mantenimiento",{"$f":"(2920448125-C15)+145780057","v":2947542626},118685556,3066228182,{"$f":"(1869296129-F15)+112079353+175295795+16804588+41936364+16920409","v":2089590179},142742459,2232332638]
["Gastos del personal y capacitación",0,14109462,14109462,null,15433791,15433791]
["Seguros pagados",0,459690754,459690754,0,419317549,419317549]
["Otros gastos de operación",334353711,0,334353711,186698802,null,186698802]
["Remuneraciones de administradores, directores, síndicos y consejo de vigilancia",0,860000000,860000000,0,877500000,877500000]
["Sueldos y Jornales",{"$f":"8993684482-C20","v":5918953485},3074730997,8993684482,{"$f":"8950033628-F20","v":5827712919},3122320709,8950033628]
["Contribuciones Sociales",{"$f":"1335845604-C21","v":921671111},414174493,1335845604,{"$f":"1294502214-F21","v":867342943},427159271,1294502214]
["Gastos de Publicidad y Propaganda",{"$f":"479148461-C22","v":37278676},441869785,479148461,{"$f":"338003371-F22","v":46433595},291569776,338003371]
["Intereses, multas y recargos impositivos",0,0,0,null,null,0]
["Intereses a bancos e instituciones financieras",0,0,0,null,null,0]
["Depreciación bienes de uso",{"$f":"4311736462-C25","v":3727355590},584380872,4311736462,{"$f":"5452089776-F25","v":4801736439},650353337,5452089776]
["Amortizaciones Varios",3297996781,0,3297996781,4859954921,null,4859954921]
["Amortización activos intangibles",0,0,0,null,null,0]
["Previsiones",0,0,0,null,null,0]
["Sumistros e Insumos",{"$f":"301420996+11252725+7030133+8775194+25585647+5181970+5164084+5350821","v":369761570},{"$f":"130633911+216544+4967240+1239185","v":137056880},506818450,{"$f":"338906703+13009095+7952816+7324166+40061373+1053456+23480+3180952+2526199+3556234","v":417594474},{"$f":"63398569+1043077+137557+3358100+2329858","v":70267161},487861635]
["Seguridad",336285209,874084510,1210369719,315012823,835370893,1150383716]
["Seguridad Ocupacional",{"$f":"166242288+117159172+6273532+12259667","v":301934659},{"$f":"68990551+9323565","v":78314116},380248775,{"$f":"90147605+18490176+38778250+117102775+9021951+4490957","v":278031714},{"$f":"16039149+1171333","v":17210482},295242196]
["Seguridad Sanitaria",221449089,{"$f":"48284315+2914394","v":51198709},272647798,142728122,77483244,220211366]
["Gastos Varios",{"$f":"16866598+20037552+1800002+826688+53694079","v":93224919},{"$f":"41883757+1265457+450909+23239093+57013226+1636364+102053190+19000000+1332000","v":247873996},341098915,{"$f":"4130768+4232711+13324470+437507090+5524545","v":464719584},{"$f":"60590726+16685843+614545+32963636+45005273+2727272+753000+57921372+72781053+201096264+1332000+81768540","v":574239524},1038959108]
["Servicios Varios",{"$f":"3002724+69813638+62578732+142457956+6383636+17305454","v":301542140},{"$f":"121500000+37863635+4765210+203800000+81142116+11976616+22034899+3636364","v":486718840},788260980,{"$f":"71422467+1300309+18950787+40946436+37018183+280454552+8869138","v":458961872},{"$f":"115750000+5256431+182863637+20000000+11047806","v":334917874},793879746]
["Total",{"$f":"SUM($B$9:B34)","v":21243250560},{"$f":"SUM($C$9:C34)","v":12204262432},{"$f":"SUM($D$9:D34)","v":33447512992},{"$f":"+SUM($E$9:E34)","v":22722796090},{"$f":"+SUM($F$9:F34)","v":11795666016},{"$f":"SUM($G$9:G34)","v":34518462106}]
[]
[]
["Sra Luisa Isabel Schaerer de Pallares","Sra. Maria Celeste Pallares Viveros",null,"Dr. Raul Fernando Vargas",null,"C.P. Gloria Elizabeth Flecha Benitez"]
["                   Presidente ","Vicepresidente",null,"Sindico Titular",null,"Contador"]

{"sheet":"Nota 28","index":32,"n_rows":23,"n_cols":8,"rows_kept":23,"cut":false,"hidden":false,"merged":[[3,0,3,4],[21,7,21,9],[22,7,22,9],[21,4,21,6],[22,4,22,6],[22,1,22,3],[5,0,5,4]]}
[{"$f":"Indice!C1","v":"GAS CORONA S.A.E.C.A."},null,null,null,"ER"]
[]
[]
["Nota 28 - Otros Ingresos y gastos operativos"]
[]
["Expresado en  guaraníes"]
[]
["Otros ingresos",{"$f":"IFERROR(IF(Indice!B6=\"\",\"2XX2\",YEAR(Indice!B6)),\"2XX2\")","v":2021},{"$f":"+IFERROR(YEAR(Indice!B6-365),\"2XX1\")","v":2020},null,"Otros gastos",{"$f":"IFERROR(IF(Indice!B6=\"\",\"2XX2\",YEAR(Indice!B6)),\"2XX2\")","v":2021},{"$f":"+IFERROR(YEAR(Indice!B6-365),\"2XX1\")","v":2020}]
["Ventas de Envases",361801645,331980000]
["Ventas Repuestos",143217241,157390912]
["Venta Materiales",0,0]
["Venta Servicios",47919319,41376222]
["Ingresos Varios",{"$f":"592435861+15051002","v":607486863},{"$f":"1178306797+9756949","v":1188063746}]
["Ventas Bienes de Uso",111818181,0]
["Total",{"$f":"SUM($B$9:B14)","v":1272243249},{"$f":"SUM($C$9:C14)","v":1718810880},null,"Total",{"$f":"SUM($F$9:F14)","v":0},{"$f":"SUM($G$9:G14)","v":0}]
[]
[]
[]
[]
[]
[]
["Sra Luisa Isabel Schaerer de Pallares","Sra. Maria Celeste Pallares Viveros",null,null,"Dr. Raul Fernando Vargas",null,null,"C.P. Gloria Elizabeth Flecha Benitez"]
["                   Presidente ","Vicepresidente",null,null,"Sindico Titular",null,null,"Contador"]

{"sheet":"Nota 29","index":33,"n_rows":22,"n_cols":7,"rows_kept":22,"cut":false,"hidden":false,"merged":[[4,0,4,6],[5,0,5,6],[20,7,20,9],[21,7,21,9],[20,1,20,2],[21,1,21,2],[20,5,20,6],[21,5,21,6]]}
[{"$f":"Indice!C1","v":"GAS CORONA S.A.E.C.A."},null,null,null,"ER"]
[]
[]
[]
["NOTA 29 - INGRESOS Y GASTOS FINANCIEROS NETOS"]
["Expresado en Guaranies"]
[]
["Ingresos Financieros netos",{"$f":"IFERROR(IF(Indice!B6=\"\",\"2XX2\",YEAR(Indice!B6)),\"2XX2\")","v":2021},{"$f":"+IFERROR(YEAR(Indice!B6-365),\"2XX1\")","v":2020},null,"Gastos Financieros netos",{"$f":"IFERROR(IF(Indice!B6=\"\",\"2XX2\",YEAR(Indice!B6)),\"2XX2\")","v":2021},{"$f":"+IFERROR(YEAR(Indice!B6-365),\"2XX1\")","v":2020}]
["Intereses En caja de Ahorro",0,0,null,"Comosion Descuentos Cheques",4150000,28400000]
["Diferencia de Cambio",587680775,771590786,null,"Gastos Financieros",{"$f":"45540091+120699","v":45660790},{"$f":"63959687+127033","v":64086720}]
[null,0,0,null,"Intereses Pagados",318172057,563989811]
[null,0,0,null,"Diferencia de Cambio",{"$f":"381527642+63096078","v":444623720},331793644]
[null,0,0,null,"Intereses Bonos",1138698630,550534249]
["Total ingresos financieros",{"$f":"SUM($B9:B13)","v":587680775},{"$f":"SUM($C9:C13)","v":771590786},null,"Total gastos financieros",{"$f":"SUM($F9:F13)","v":1951305197},{"$f":"SUM($G9:G13)","v":1538804424}]
[]
[]
[]
[]
[]
[]
["Sra Luisa Isabel Schaerer de Pallares","Sra. Maria Celeste Pallares Viveros",null,null,"Dr. Raul Fernando Vargas","C.P. Gloria Elizabeth Flecha Benitez"]
["                   Presidente ","Vicepresidente",null,null,"Sindico Titular","Contador"]

{"sheet":"Nota 30","index":34,"n_rows":28,"n_cols":5,"rows_kept":28,"cut":false,"hidden":false,"merged":[[5,1,5,2],[2,0,2,4],[18,2,18,4],[27,2,27,4],[17,2,17,4],[26,2,26,4],[3,0,3,3],[4,0,4,3]]}
[{"$f":"Indice!C1","v":"GAS CORONA S.A.E.C.A."},null,null,null,"ER"]
[]
["NO APLICA "]
["Nota 34 - Resultado de inversiones en asociadas"]
["Expresado en Guaranies"]
[]
[]
["Resultado de inversiones en asociadas",{"$f":"IFERROR(IF(Indice!B6=\"\",\"2XX2\",YEAR(Indice!B6)),\"2XX2\")","v":2021},{"$f":"+IFERROR(YEAR(Indice!B6-365),\"2XX1\")","v":2020}]
["(Detallar cuenta)"]
[]
[]
[]
["Total",{"$f":"SUM($B9:B12)","v":0},{"$f":"SUM($C9:C12)","v":0}]
[]
[]
[]
[]
["Sra Luisa Isabel Schaerer de Pallares",null,"Sra. Maria Celeste Pallares Viveros"]
["               Presidente ",null,"Vicepresidente"]
[]
[]
[]
[]
[]
[]
[]
["Dr. Raul Fernando Vargas",null,"C.P. Gloria Elizabeth Flecha Benitez"]
["       Sindico Titular",null,"Contador"]

{"sheet":"Nota 31","index":35,"n_rows":27,"n_cols":5,"rows_kept":27,"cut":false,"hidden":false,"merged":[[25,2,25,4],[26,2,26,4],[5,1,5,2],[2,0,2,2],[16,2,16,4],[17,2,17,4],[3,0,3,3],[4,0,4,3]]}
[{"$f":"Indice!C1","v":"GAS CORONA S.A.E.C.A."},null,null,null,"ER"]
[]
["NO APLICA "]
["Nota 31 - Resultado participación minoritaria"]
["Expresado en Guaranies"]
[]
[]
["Resultado participación minoritaria",{"$f":"IFERROR(IF(Indice!B6=\"\",\"2XX2\",YEAR(Indice!B6)),\"2XX2\")","v":2021},{"$f":"+IFERROR(YEAR(Indice!B6-365),\"2XX1\")","v":2020}]
[]
[]
[]
["Total",{"$f":"SUM($B9:B11)","v":0},{"$f":"SUM($C9:C11)","v":0}]
[]
[]
[]
[]
["Sra Luisa Isabel Schaerer de Pallares",null,"Sra. Maria Celeste Pallares Viveros"]
["               Presidente ",null,"Vicepresidente"]
[]
[]
[]
[]
[]
[]
[]
["Dr. Raul Fernando Vargas",null,"C.P. Gloria Elizabeth Flecha Benitez"]
["       Sindico Titular",null,"Contador"]

{"sheet":"Nota 32","index":36,"n_rows":31,"n_cols":5,"rows_kept":31,"cut":false,"hidden":false,"merged":[[30,2,30,4],[5,1,5,2],[2,0,2,2],[20,2,20,4],[21,2,21,4],[29,2,29,4],[3,0,3,4],[4,0,4,4]]}
[{"$f":"Indice!C1","v":"GAS CORONA S.A.E.C.A."},null,null,null,"ER"]
[]
["NO APLICA"]
["Nota 32 - IMPUESTO A LA RENTA"]
["Expresado en Guaranies"]
[]
[null,{"$f":"IFERROR(IF(Indice!B6=\"\",\"2XX2\",YEAR(Indice!B6)),\"2XX2\")","v":2021},{"$f":"+IFERROR(YEAR(Indice!B6-365),\"2XX1\")","v":2020}]
["Impuesto a la renta"]
[]
[]
[]
[]
[]
["Total",{"$f":"SUM($B8:B13)","v":0},{"$f":"SUM($C8:C13)","v":0}]
[]
[]
[]
[]
[]
[]
["Sra Luisa Isabel Schaerer de Pallares",null,"Sra. Maria Celeste Pallares Viveros"]
["               Presidente ",null,"Vicepresidente"]
[]
[]
[]
[]
[]
[]
[]
["Dr. Raul Fernando Vargas",null,"C.P. Gloria Elizabeth Flecha Benitez"]
["       Sindico Titular",null,"Contador"]

{"sheet":"Nota 33","index":37,"n_rows":31,"n_cols":5,"rows_kept":31,"cut":false,"hidden":false,"merged":[[30,2,30,4],[2,0,2,2],[20,2,20,4],[21,2,21,4],[29,2,29,4],[3,0,3,4],[4,0,4,4]]}
[{"$f":"Indice!C1","v":"GAS CORONA S.A.E.C.A."},null,null,null,"ER"]
[]
["NO APLICA "]
["Nota 33 - Resultado extraordinario neto de impuesto a la renta"]
["Expresado en Guaranies"]
[]
[null,{"$f":"IFERROR(IF(Indice!B6=\"\",\"2XX2\",YEAR(Indice!B6)),\"2XX2\")","v":2021},{"$f":"+IFERROR(YEAR(Indice!B6-365),\"2XX1\")","v":2020}]
["Conceptos"]
["(Detallar)"]
[]
[]
[]
[]
[]
["Total",{"$f":"SUM($B8:B14)","v":0},{"$f":"SUM($C8:C14)","v":0}]
[]
[]
[]
[]
[]
["Sra Luisa Isabel Schaerer de Pallares",null,"Sra. Maria Celeste Pallares Viveros"]
["               Presidente ",null,"Vicepresidente"]
[]
[]
[]
[]
[]
[]
[]
["Dr. Raul Fernando Vargas",null,"C.P. Gloria Elizabeth Flecha Benitez"]
["       Sindico Titular",null,"Contador"]

{"sheet":"Nota 34","index":38,"n_rows":27,"n_cols":5,"rows_kept":27,"cut":false,"hidden":false,"merged":[[2,0,2,2],[17,2,17,4],[25,2,25,4],[26,2,26,4],[3,0,3,3],[4,0,4,3]]}
[{"$f":"Indice!C1","v":"GAS CORONA S.A.E.C.A."},null,null,null,"ER"]
[]
["NO APLICA"]
["Nota 34 - Resultado sobre actividades discontinuadas neto de impuesto a la renta"]
["Expresado en Guaranies"]
[]
["Resultado sobre actividades discontinuadas neto de impuesto a la renta",{"$f":"IFERROR(IF(Indice!B6=\"\",\"2XX2\",YEAR(Indice!B6)),\"2XX2\")","v":2021},{"$f":"+IFERROR(YEAR(Indice!B6-365),\"2XX1\")","v":2020}]
[]
["(nueva cuenta a incluir)"]
["Subtotal"]
["- Impuesto a la renta"]
["Total",{"$f":"SUM($B8:B11)","v":0},{"$f":"SUM($C8:C11)","v":0}]
[]
[]
[]
[]
["Sra Luisa Isabel Schaerer de Pallares",null,"Sra. Maria Celeste Pallares Viveros"]
["               Presidente ",null,"Vicepresidente"]
[]
[]
[]
[]
[]
[]
[]
["Dr. Raul Fernando Vargas",null,"C.P. Gloria Elizabeth Flecha Benitez"]
["       Sindico Titular",null,"Contador"]

{"sheet":"Nota 35","index":39,"n_rows":18,"n_cols":6,"rows_kept":18,"cut":false,"hidden":false,"merged":[[16,1,16,2],[17,1,17,2],[17,5,17,6],[16,3,16,4],[17,3,17,4]]}
[{"$f":"Indice!C1","v":"GAS CORONA S.A.E.C.A."},null,null,null,"ER"]
[]
[]
["NOTA 35- UTILIDAD (PÉRDIDA) NETA DEL AÑO Y POR ACCION ORDINARIA"]
["La Sociedad calcula la utilidad (pérdida) neta por acción sobre la base de la utilidad (pérdida) del año y … acciones ordinarias (aclarar las características de las acciones) de valor nominal G/ …cada una con derecho a … voto por acción (aclarar el derecho de voto que tiene cada tipo de acción)."]
[]
[null,{"$f":"IFERROR(IF(Indice!B6=\"\",\"2XX2\",YEAR(Indice!B6)),\"2XX2\")","v":2021},{"$f":"+IFERROR(YEAR(Indice!B6-365),\"2XX1\")","v":2020}]
["Cantidad de Acciones Ordinarias en Circulación",5000,4920]
["Utilidad Neta",5594340806,19997379884]
["Utilidad Neta por Acción Ordinaria",{"$f":"IFERROR(B9/B8,0)","v":1118868.1612},{"$f":"IFERROR(C9/C8,0)","v":4064508.106504065}]
[]
[]
[]
[]
[]
[]
["Sra Luisa Isabel Schaerer de Pallares","Sra. Maria Celeste Pallares Viveros",null,"Dr. Raul Fernando Vargas",null,"C.P. Gloria Elizabeth Flecha Benitez"]
["                   Presidente ","Vicepresidente",null,"Sindico Titular",null,"Contador"]

{"sheet":"Nota 36","index":40,"n_rows":27,"n_cols":6,"rows_kept":27,"cut":false,"hidden":false,"merged":[[26,5,26,6],[5,0,5,8],[3,0,3,4],[2,0,2,4],[25,1,25,2],[25,3,25,4],[26,1,26,2],[26,3,26,4]]}
[{"$f":"Indice!C1","v":"GAS CORONA S.A.E.C.A."},null,null,null,"Indice"]
[]
["NO APLICA"]
["NOTA 36 - ACTIVOS GRAVADOS"]
[]
["Los siguientes bienes de propiedad de la Sociedad han sido hipotecados y prendados en garantía de obligaciones financieras."]
[]
[{"$f":"IFERROR(\"Al \"&DAY(Indice!B6)&\" de \"&VLOOKUP(MONTH(Indice!B6),Indice!S:T,2,0)&\" de \"&YEAR(Indice!B6-365),\"Al dia... de mes… de año 2XX1…\")","v":"Al 30 de Septiembre de 2020"}]
["Tipo de Activo","Datos  del activo gravado","Tipo de garantía","Importe (indicar   moneda)","A favor de"]
[]
[]
[]
[]
[]
[{"$f":"IFERROR(\"Al \"&DAY(Indice!B6)&\" de \"&VLOOKUP(MONTH(Indice!B6),Indice!S:T,2,0)&\" de \"&YEAR(Indice!B6-1),\"Al dia... de mes… de año 2XX2…\")","v":"Al 30 de Septiembre de 2021"}]
["Tipo de Activo","Datos  del activo gravado","Tipo de garantía","Importe (indicar   moneda)","A favor de"]
[]
[]
[]
[]
[]
[]
[]
[]
[]
["Sra Luisa Isabel Schaerer de Pallares","Sra. Maria Celeste Pallares Viveros",null,"Dr. Raul Fernando Vargas",null,"C.P. Gloria Elizabeth Flecha Benitez"]
["                   Presidente ","Vicepresidente",null,"Sindico Titular",null,"Contador"]

{"sheet":"Nota 37","index":41,"n_rows":15,"n_cols":6,"rows_kept":15,"cut":false,"hidden":false,"merged":[[2,0,2,7],[13,1,13,2],[13,3,13,4],[14,1,14,2],[14,3,14,4],[14,5,14,6],[9,0,9,7],[5,0,6,7],[3,0,3,7]]}
[{"$f":"Indice!C1","v":"GAS CORONA S.A.E.C.A."},null,null,null,"Indice"]
[]
["NO APLICA"]
["NOTA 37 - CONTINGENCIAS Y COMPROMISOS "]
[]
[{"$f":"IFERROR(\"Al  \"&DAY(Indice!B6)&\" de \"&VLOOKUP(MONTH(Indice!B6),Indice!S:T,2,0)&\" de \"&YEAR(Indice!B6-1)&\" no existen situaciones contingentes, ni reclamos que pudieran resultar en la generación de obligaciones para la Sociedad adicionales a las que se presentan en estos estados financieros.\",\"Al … de …………... 20X2 no existen situaciones contingentes, ni reclamos que pudieran resultar en la generación de obligaciones para la Sociedad adicionales a las que se presentan en estos estados financieros.\")","v":"Al  30 de Septiembre de 2021 no existen situaciones contingentes, ni reclamos que pudieran resultar en la generación de obligaciones para la Sociedad adicionales a las que se presentan en estos estados financieros."}]
[]
[]
[]
[]
[]
[]
[]
["Sra Luisa Isabel Schaerer de Pallares","Sra. Maria Celeste Pallares Viveros",null,"Dr. Raul Fernando Vargas",null,"C.P. Gloria Elizabeth Flecha Benitez"]
["                   Presidente ","Vicepresidente",null,"Sindico Titular",null,"Contador"]

{"sheet":"Nota 38","index":42,"n_rows":30,"n_cols":6,"rows_kept":30,"cut":false,"hidden":false,"merged":[[2,0,2,6],[28,5,28,7],[29,5,29,7],[3,0,3,6],[5,0,5,6],[6,0,6,6],[8,0,8,6]]}
[{"$f":"Indice!C1","v":"GAS CORONA S.A.E.C.A."},null,null,"Índice"]
[]
["NO APLICA"]
["NOTA 38 - IMPUESTO DIFERIDO"]
[]
["Al … de …........... 20X2 la Sociedad constituyó una provisión para impuesto a la renta de Guaraníes  …... (Al … de …...............20X1:  Guaraníes  …....) / (La Sociedad no ha constituido provisión para impuesto a la renta, debido a que a esa fecha la misma generó renta imponible que fue compensada con quebrantos impositivos acumulados a esa fecha). "]
["La Sociedad contabiliza el impuesto a la renta por el método de lo diferido, método del pasivo. El mencionado método establece la determinación de activos o pasivos impositivos diferidos netos basados en las diferencias temporales y temporarias, con cargo a la línea Impuesto a la renta del Estado de resultados."]
[]
["El siguiente cuadro detalla las diferencias temporales a la tasa del impuesto a los efectos de determinación del impuesto diferido:"]
[]
[null,{"$f":"IFERROR(IF(Indice!B6=\"\",\"2XX2\",YEAR(Indice!B6)),\"2XX2\")","v":2021},{"$f":"+IFERROR(YEAR(Indice!B6-365),\"2XX1\")","v":2020}]
["Activos y pasivos impositivos diferidos: "]
["Caja y Bancos"]
["Inversiones"]
["Previsión para deudores incobrables"]
["Bienes de uso"]
["Activos intangibles"]
["Previsión del pasivo"]
["Deudas comerciales y bancarias"]
["Bienes de cambio"]
["Sub - total  "]
["Previsión para impuestos diferidos netos "]
["Total activo/pasivo impositivo diferido neto antes de quebrantos"]
["Quebranto impositivo"]
["Total"]
[]
[]
[]
["Sra Luisa Isabel Schaerer de Pallares","Sra. Maria Celeste Pallares Viveros",null,"Dr. Raul Fernando Vargas",null,"C.P. Gloria Elizabeth Flecha Benitez"]
["                   Presidente ","Vicepresidente",null,"Sindico Titular",null,"Contador"]

{"sheet":"Nota 39","index":43,"n_rows":16,"n_cols":6,"rows_kept":16,"cut":false,"hidden":false,"merged":[[15,5,15,7],[4,0,4,8],[5,0,5,8],[8,0,8,8],[12,0,12,8],[14,5,14,7]]}
[{"$f":"Indice!C1","v":"GAS CORONA S.A.E.C.A."},null,null,null,"Indice"]
[]
[]
[]
["NOTA 39 - HECHOS POSTERIORES"]
[]
[]
[]
["Entre la fecha de cierre del ejercicio y la fecha de preparación de estos estados financieros, no han ocurrido hechos significativos de carácter financiero o de otra índole que afecten la situación patrimonial o financiera o los resultados de la Sociedad al 30 de  SETIEMBRE de 2021."]
[]
[]
[]
[]
[]
["Sra Luisa Isabel Schaerer de Pallares","Sra. Maria Celeste Pallares Viveros",null,"Dr. Raul Fernando Vargas",null,"C.P. Gloria Elizabeth Flecha Benitez"]
["                   Presidente ","Vicepresidente",null,"Sindico Titular",null,"Contador"]

{"sheet":"Nota 40","index":44,"n_rows":50,"n_cols":3,"rows_kept":50,"cut":false,"hidden":false,"merged":[[48,2,48,4],[49,2,49,4],[4,0,4,3],[5,0,5,3],[7,0,7,6],[23,0,23,5],[40,2,40,4]]}
[{"$f":"Indice!C1","v":"GAS CORONA S.A.E.C.A."},null,"Indice"]
[]
[]
[]
["NOTA 40 - SALDOS Y TRANSACCIONES CON PARTES RELACIONADAS"]
["Expresado en Guaranies"]
[]
[]
[]
[null,{"$f":"IFERROR(IF(Indice!B6=\"\",\"2XX2\",YEAR(Indice!B6)),\"2XX2\")","v":2021},{"$f":"+IFERROR(YEAR(Indice!B6-365),\"2XX1\")","v":2020}]
["ACTIVO"]
["Inversiones temporales"]
["Cuentas a cobrar comerciales",4991541986,4741357062]
["Otros créditos"]
["Total activo",{"$f":"B13","v":4991541986},{"$f":"C13","v":4741357062}]
["PASIVO"]
["Cuentas por pagar comerciales",11000000,{"$f":"453000+181200","v":634200}]
["Préstamos a corto plazo"]
["Provisiones"]
["Préstamos a largo plazo"]
["Otros pasivos"]
["Total pasivo",{"$f":"B17","v":11000000},{"$f":"C17","v":634200}]
[]
[]
[]
[null,{"$f":"IFERROR(IF(Indice!B6=\"\",\"2XX2\",YEAR(Indice!B6)),\"2XX2\")","v":2021},{"$f":"+IFERROR(YEAR(Indice!B6-365),\"2XX1\")","v":2020}]
["Costo de ventas",0,0]
["Compras ",0,0]
[null,0,0]
["Gastos administrativos",0,0]
["Honorarios por servicios",0,0]
["Otros ",0,0]
["Gastos financieros ",0,0]
["Intereses pagados por préstamos",0,0]
[]
[]
[]
[]
[]
["Sra Luisa Isabel Schaerer de Pallares",null,"Sra. Maria Celeste Pallares Viveros"]
["               Presidente ",null,"Vicepresidente"]
[]
[]
[]
[]
[]
[]
[]
["Dr. Raul Fernando Vargas",null,"C.P. Gloria Elizabeth Flecha Benitez"]
["       Sindico Titular",null,"Contador"]

{"sheet":"Base de Monedas","index":45,"n_rows":179,"n_cols":3,"rows_kept":179,"cut":false,"hidden":false,"merged":[]}
["PYG","Guaraní","Índice"]
["USD","Dólar estadounidense"]
["EUR","Euro"]
["AED","Dírham de los Emiratos Árabes Unidos"]
["AFN","Afgani"]
["ALL","Lek"]
["AMD","Dram armenio"]
["ANG","Florín antillano neerlandés"]
["AOA","Kwanza"]
["ARS","Peso argentino"]
["AUD","Dólar australiano"]
["AWG","Florín arubeño"]
["AZN","Manat azerbaiyano"]
["BAM","Marco convertible"]
["BBD","Dólar de Barbados"]
["BDT","Taka"]
["BGN","Lev búlgaro"]
["BHD","Dinar bareiní"]
["BIF","Franco de Burundi"]
["BMD","Dólar bermudeño"]
["BND","Dólar de Brunéi"]
["BOB","Boliviano"]
["BOV","MVDOL"]
["BRL","Real brasileño"]
["BSD","Dólar bahameño"]
["BTN","Ngultrum"]
["BWP","Pula"]
["BYN","Rublo bielorruso"]
["BZD","Dólar beliceño"]
["CAD","Dólar canadiense"]
["CDF","Franco congoleño"]
["CHE","Euro WIR"]
["CHF","Franco suizo"]
["CHW","Franco WIR"]
["CLF","Unidad de fomento"]
["CLP","Peso chileno"]
["CNY","Yuan chino"]
["COP","Peso colombiano"]
["COU","Unidad de valor real"]
["CRC","Colón costarricense"]
["CUC","Peso convertible"]
["CUP","Peso cubano"]
["CVE","Escudo caboverdiano"]
["CZK","Corona checa"]
["DJF","Franco yibutiano"]
["DKK","Corona danesa"]
["DOP","Peso dominicano"]
["DZD","Dinar argelino"]
["EGP","Libra egipcia"]
["ERN","Nakfa"]
["ETB","Birr etíope"]
["FJD","Dólar fiyiano"]
["FKP","Libra malvinense"]
["GBP","Libra esterlina"]
["GEL","Lari"]
["GHS","Cedi ghanés"]
["GIP","Libra de Gibraltar"]
["GMD","Dalasi"]
["GNF","Franco guineano"]
["GTQ","Quetzal"]
["GYD","Dólar guyanés"]
["HKD","Dólar de Hong Kong"]
["HNL","Lempira"]
["HRK","Kuna"]
["HTG","Gourde"]
["HUF","Forinto"]
["IDR","Rupia indonesia"]
["ILS","Nuevo shéquel israelí"]
["INR","Rupia india"]
["IQD","Dinar iraquí"]
["IRR","Rial iraní"]
["ISK","Corona islandesa"]
["JMD","Dólar jamaiquino"]
["JOD","Dinar jordano"]
["JPY","Yen"]
["KES","Chelín keniano"]
["KGS","Som"]
["KHR","Riel"]
["KMF","Franco comorense"]
["KPW","Won norcoreano"]
["KRW","Won"]
["KWD","Dinar kuwaití"]
["KYD","Dólar de las Islas Caimán"]
["KZT","Tenge"]
["LAK","Kip"]
["LBP","Libra libanesa"]
["LKR","Rupia de Sri Lanka"]
["LRD","Dólar liberiano"]
["LSL","Loti"]
["LYD","Dinar libio"]
["MAD","Dírham marroquí"]
["MDL","Leu moldavo"]
["MGA","Ariary malgache"]
["MKD","Denar"]
["MMK","Kyat"]
["MNT","Tugrik"]
["MOP","Pataca"]
["MRU","Uguiya"]
["MUR","Rupia de Mauricio"]
["MVR","Rufiyaa"]
["MWK","Kwacha"]
["MXN","Peso mexicano"]
["MXV","Unidad de Inversión (UDI) mexicana"]
["MYR","Ringgit malayo"]
["MZN","Metical mozambiqueño"]
["NAD","Dólar namibio"]
["NGN","Naira"]
["NIO","Córdoba"]
["NOK","Corona noruega"]
["NPR","Rupia nepalí"]
["NZD","Dólar neozelandés"]
["OMR","Rial omaní"]
["PAB","Balboa"]
["PEN","Sol"]
["PGK","Kina"]
["PHP","Peso filipino"]
["PKR","Rupia pakistaní"]
["PLN","Złoty"]
["QAR","Riyal qatarí"]
["RON","Leu rumano"]
["RSD","Dinar serbio"]
["RUB","Rublo ruso"]
["RWF","Franco ruandés"]
["SAR","Riyal saudí"]
["SBD","Dólar de las Islas Salomón"]
["SCR","Rupia seychelense"]
["SDG","Dinar sudanés"]
["SEK","Corona sueca"]
["SGD","Dólar de Singapur"]
["SHP","Libra de Santa Elena"]
["SLL","Leone"]
["SOS","Chelín somalí"]
["SRD","Dólar surinamés"]
["SSP","Libra sursudanesa"]
["STN","Dobra"]
["SVC","Colon Salvadoreño"]
["SYP","Libra siria"]
["SZL","Lilangeni"]
["THB","Baht"]
["TJS","Somoni tayiko"]
["TMT","Manat turcomano"]
["TND","Dinar tunecino"]
["TOP","Paʻanga"]
["TRY","Lira turca"]
["TTD","Dólar de Trinidad y Tobago"]
["TWD","Nuevo dólar taiwanés"]
["TZS","Chelín tanzano"]
["UAH","Grivna"]
["UGX","Chelín ugandés"]
["USN","Dólar estadounidense (Siguiente día)"]
["UYI","Peso en Unidades Indexadas (Uruguay)"]
["UYU","Peso uruguayo"]
["UYW","Unidad Previsional"]
["UZS","Som uzbeko"]
["VES7​","Bolívar soberano"]
["VND","Dong vietnamita"]
["VUV","Vatu"]
["WST","Tala"]
["XAF","Franco CFA de África Central"]
["XAG","Plata (una onza troy)"]
["XAU","Oro (una onza troy)"]
["XBA","Unidad compuesta europea (EURCO) (Unidad del mercados de bonos)"]
["XBB","Unidad Monetaria europea (E.M.U.-6) (Unidad del mercado de bonos)"]
["XBC","Unidad europea de cuenta 9 (E.U.A.-9) (Unidad del mercado de bonos)"]
["XBD","Unidad europea de cuenta 17 (E.U.A.-17) (Unidad del mercado de bonos)"]
["XCD","Dólar del Caribe Oriental"]
["XDR","Derechos especiales de giro"]
["XOF","Franco CFA de África Occidental"]
["XPD","Paladio (una onza troy)"]
["XPF","Franco CFP"]
["XPT","Platino (una onza troy)"]
["XSU","SUCRE"]
["XTS","Reservado para pruebas"]
["XUA","Unidad de cuenta BAD"]
["XXX","Sin divisa"]
["YER","Rial yemení"]
["ZAR","Rand"]
["ZMW","Kwacha zambiano"]
["ZWL","Dólar zimbabuense"]

{"sheet":"Hoja1","index":46,"n_rows":0,"n_cols":0,"rows_kept":0,"cut":false,"hidden":false,"merged":[]}